Workbook

Sheet Orden (hidden)
A2: Planta | B2: CV
A3: =GARABITO!$F$8 -> Garabito | B3: =GARABITO!$E$63 -> 18.29444389
A4: =OROTINA!$F$8 -> Orotina | B4: =OROTINA!$E$63 -> 21.96284961
A5: =GUAPILES!$F$8 -> Guapiles | B5: =GUAPILES!$E$63 -> 20.70000406
A6: ='MOIN I'!$F$8 -> Moín I | B6: ='MOIN I'!E63 -> 22.80126443
A7: ='MOIN III'!$F$8 -> Moín III | B7: ='MOIN III'!E64 -> 43.0145209
A8: ='MOIN II'!$F$8 -> Moín II | B8: ='MOIN II'!$E$63 -> 43.88566121
A9: ='SAN ANTONIO'!$F$8 -> San Antonio | B9: ='SAN ANTONIO'!$E$63 -> 48.47144508
A10: =BARRANCA!$F$8 -> Barranca | B10: =BARRANCA!E63 -> 49.95857889

Sheet GARABITO
C1: INSTITUTO COSTARRICENSE DE ELECTRICIDAD | I1: Código: | M1: INSTITUTO COSTARRICENSE DE ELECTRICIDAD | R1: Código:
I2: PE-05-FO-90-002 | R2: PE-05-FO-90-002
C3: UEN PRODUCCIÓN DE ELECTRICIDAD | I3: Versión: | M3: UEN PRODUCCIÓN DE ELECTRICIDAD | R3: Versión:
I4: 2 | R4: 1
C5: REPORTE DEL COSTO VARIABLE OPERATIVO | I5: Rige a partir de: | M5: REPORTE DEL COSTO VARIABLE OPERATIVO | R5: Rige a partir de:
I6: 2012-06-12 | R6: 2012-06-12
B8: Fecha: | C8: 2014-11-04 | E8: Planta: | F8: Garabito | H8: Unidad: | I8: 1-11 | M8: COSTOS DE ARRANQUE Y PARO
B10: COMBUSTIBLE 1 PRINCIPAL | G10: OPERACIÓN | M10: Tipo de Arranque: | N10: Normal
B11: Tipo | D11: HFO Clase C | G11: Horas esperadas de operación, hop | I11: =-985.66+71.51*I12 -> 3590.98 | J11: hrs/periodo | M11: Descripción: | N11: Arranque con no más de 18 horas desde último arranque.
B12: Poder calorico bajo (LHV) | D12: =D13/1.06*0.96 -> 37132.07547 | E12: BTU/l | G12: Generación bruta (PP) | I12: 64 | J12: GWh/periodo
B13: Pder calórico bajo (LHV) | D13: 41000 | E13: kJ/kg | G13: Consumo por servicio propio: | I13: 2.288506 | J13: % | L13: PÉRDIDA DE EFICIENCIA EN LA TOMA DE CARGA Y DESCARGA | Q13: CONDICIONES DE OTROS ARRANQUES
B14: Precio combustible | D14: 418.13 | E14: colones/l | L14: Consumo de combustible durante la carga (X) | N14: 1216 | O14: =+IF($B$11="Turbo vapor","toneladas","litros") -> litros | Q14: Cuando la unidad tiene más de 18 horas sin utilizarse el arranque aumenta el tiempo de rampa de carga (tc) a 45 minutos. Con el aumento de combustible esto representa un aproximado de (X=) 2360 litros de combustible con una generación de (Ex=) 6 600 kWh. Adicionalmente las horas equivalentes suben a (hpa=) 5.
M15: Energía generada durante la toma de carga (Ex) | N15: 5167 | O15: kWh
M16: Rendimiento de la unidad a potencia nominal (Rnom) | N16: =IF(N38=1,C72,C80) -> 4.534 | O16: =+CONCATENATE("kWh/",IF($B$11="Turbo vapor","toneladas","litros")) -> kWh/litros
B17: COMBUSTIBLE 2 SECUNDARIO | G17: CONDICIONES | L17: Consumo de combustible durante la descarga (Y) | N17: 361 | O17: =+IF($B$11="Turbo vapor","toneladas","litros") -> litros
B18: Tipo | D18: Diesel | G18: Potencia efectiva actual | I18: 18000 | J18: kW | M18: Energía generada durante la toma de descarga (Ey) | N18: 1658 | O18: kWh
B19: Poder calorico bajo (LHV) | D19: =D20/1.06*0.84 -> 33825.84906 | E19: BTU/l | G19: Tipo de cambio | I19: 545.65 | J19: colones/$
B20: Pder calórico bajo (LHV) | D20: 42685 | E20: kJ/kg | G20: Tipo de combustible | I20: 1
B21: Precio combustible | D21: 592.05 | E21: colones/l | H21: Método calculo de repuestos | I21: ALTERNATIVO
H22: Porcentaje de uso del combustible 2 | I22: 0.0401
L23: CONSUMO DE COMBUSTIBLE EN LAS RAMPAS | Q23: TIEMPO DE ARRANQUE Y PARO
L24: Consumo de combustible arranque (Ga) | N24: 13 | O24: =+CONCATENATE(IF($B$11="Turbo vapor","toneladas","litros"),"/arranque") -> litros/arranque | Q24: Tiempo de arranque (ta) | R24: 1.5 | S24: minutos
B25: CALCULO DE COSTOS VARIABLES OPERATIVOS | L25: Consumo de combustible parada (Gp) | N25: 43 | O25: =+CONCATENATE(IF($B$11="Turbo vapor","toneladas","litros"),"/arranque") -> litros/arranque | Q25: Tiempo de parada (tp) | R25: 6 | S25: minutos
L26: Consumo de combustible asumiendo carga (Gc) | N26: =+IF(OR(N14="",N15="",N16=""),0,IF((N14-(N15/$N$16))<0,0,N14-(N15/$N$16))) -> 76.38817821 | O26: =+CONCATENATE(IF($B$11="Turbo vapor","toneladas","litros"),"/arranque") -> litros/arranque | Q26: Tiempo de rampa de carga (tc) | R26: 30 | S26: minutos
B27: COMBUSTIBLE | G27: TRATAMIENTO QUÍMICO | L27: Consumo de combustible asumiendo descarga (Gd) | N27: =+IF(OR(N17="",N18="",N16=""),0,IF((N17-(N18/$N$16))<0,0,N17-(N18/$N$16))) -> 0 | O27: =+CONCATENATE(IF($B$11="Turbo vapor","toneladas","litros"),"/arranque") -> litros/arranque | Q27: Tiempo de rampa de descarga (td) | R27: 10 | S27: minutos
B28: Rendimiento promedio | D28: =VLOOKUP(I18,$B$63:$C$67,2,FALSE) -> 4.534 | E28: kWh/l | G28: Precio de productos quimicos a granel (PPQ) | I28: =0.01*I19 -> 5.4565 | J28: colones/l
B29: Heat Rate | D29: =IF(I20=1,D12,D19)/D28 -> 8189.694634 | E29: BTU/kWh | G29: Consumo de productos, durante ciclo operativo (CPQ) | I29: 0.07 | J29: l/h | L29: Consumo total de combustible (Gi) | N29: =N27+N26+N25+N24 -> 132.3881782 | O29: =+CONCATENATE(IF($B$11="Turbo vapor","toneladas","litros"),"/arranque") -> litros/arranque
B30: Eficiencia electrica del turbogrupo | D30: =3413/D29 -> 0.4167432551 | G30: Costo Variable de productos quimicos (CVPQ) | I30: =(I28*I29)/(I12*1000000*(1-I13/100)) -> 6.107824812e-09 | J30: colones/kWh
L31: COSTO POR MANTENIMIENTO
B32: Costo Variable por Combustible (CVC) | D32: =IF(I20=1,D14,D21)/(D28*(1-I13/100)) -> 94.38090969 | E32: colones/kWh | G32: AGUA DE PROCESO | L32: Costos de mantenimiento por hora de operación (M) | N32: =IF(I21="HISTORICO",I41,I48)*B63*(1-I13/100) -> 93384.00847 | O32: colones/hop
D33: =D32/I19*100 -> 17.2969687 | E33: cent-$/kWh | G33: Precio del agua potable o cruda, mes de declaracion (PA) | J33: colones/m3 | L33: Horas equivalente de operación por arranque (hpa) | N33: 0 | O33: hop
B34: ARRANQUE | G34: Consumo agua, durante ciclo operativo (CAA) | J34: m3/h
B35: Costo por arranque (CPA) | D35: =Q44 -> 55355.46895 | E35: colones/arr | G35: Costo Variable por agua potable o cruda (CVAP) | I35: =I33*I34/(I12*1000000*(1-I13/100)) -> 0 | J35: colones/kWh | L35: Costo por mantenimiento | N35: =+N32*N33 -> 0 | O35: colones/arranque
B36: Número de arranques estimado (#A) | D36: =114.23+0.3657*I12 -> 137.6348 | E36: arranques
B37: Ciclo de arranque (CA) | D37: =I12*1000000*(1-I13/100)/D36 -> 454357.155 | E37: kWh/arranque | L37: COSTO POR COMBUSTIBLE
B38: Costo Variable por Arranque (CVA) | D38: =D35/D37 -> 0.1218325019 | E38: colones/kWh | G38: MANTENIMIENTO HISTÓRICO | M38: Tipo de combustible: | N38: 1
G39: Costo unitario repuestos (CUMRep) | J39: colones/kWh | M39: Precio Combustible: | N39: =IF(N38=1,D14,D21) -> 418.13 | O39: =+CONCATENATE("colones/",IF($B$11="Turbo vapor","ton","litros")) -> colones/litros
B40: LUBRICANTES
B41: Precio del lubricante (PL) | D41: 1003.44 | E41: colones/l | G41: Costo Variable de mantenimiento (CVM) | I41: =I39/(1-I13/100) -> 0 | J41: colones/kWh | L41: Costo por Combustible | M41: Costo por combustible | N41: =N29*N39 -> 55355.46895 | O41: colones/arranque
B42: Consumo lubricante (CL) | D42: 0.0002612826 | E42: l/kWh
B44: Costo Variable por lubricantes (CVL) | D44: =D41*D42/(1-I13/100) -> 0.2683219767 | E44: colones/kWh | G44: MANTENIMIENTO ALTERNATIVO | L44: COSTO ARRANQUE Y PARO (CPA) | Q44: =N35+N41 -> 55355.46895 | R44: colones/arranque
G45: Valor de los repuestos durante el ciclo operativo (RPTM) | I45: =(I76/I72+I77/I73+I78/I74+I79/I75)*I19 -> 78832.73828 | J45: colones/h
G46: Valor de otros insumos durante el ciclo operativo (OIM) | I46: =+I19*26.6677727272727 -> 14551.27019 | J46: colones/h | Q46: =Q44/I19 -> 101.448674 | R46: $/arranque
B47: CONTROL Y MITIGACIÓN EMISIONES | G47: Valor de la mano de obra adicional (MOAM) | J47: colones/h
B48: Precio quimicos (PQCME) | D48: 0 | E48: colones/l | G48: Costo Variable de mantenimiento (CVM) | I48: =I45/(B63*(1-I13/100))+(I46+I47)/(B63*(1-I13/100)) -> 5.3095089 | J48: colones/kWh | L48: Comentarios:
B49: Consumo de quimicos (CQCME) | E49: l/hr | L49: 1. Normalmente la planta puede trabajar y arrancar solamente con búnker, pero existen condiciones que requieren la utilización de diesel. Cuando la calidad del búnker no es la adecuada se requiere el uso de diesel durante el arranque en la toma de carga por un lapso de tiempo. También se presenta consumo de diesel por los faltantes de búnker para la operación de las unidades debido a problemas en el proceso de suministro. Dentro del cálculo del costo no se utiliza este porcentaje, pero se puede considerar para el cálculo del requerimiento de combustible. 2. Si desea calcular el costo de arranque en frío deberá sustituir los valores indicados en el cuadro "Condiciones de Otros Arranques"
B50: Costo de mitigacion de emisiones (CVCME) | D50: =(D48/(I12*1000000*(1-I13/100)))*D49 -> 0 | E50: colones/kWh
B53: COSTOS VARIABLES TOTALES DE PRODUCCION (CVP) | H53: =IF(I21="HISTORICO",I41,I48)+D44+I35+D38+D32+I30+D50 -> 100.0805731 | I53: colones/kWh
H55: =H53/I19*100 -> 18.34153268 | I55: cent $/kWh
B57: Costo Variable de O&M (sin combustible) | H57: =(H55-D33) -> 1.044563985 | I57: cent $/kWh
B59: DATOS PARA EL CALCULO
B61: Rendimiento seleccionado | E61: CVC (cent $/kWh)
B62: Potencia (kW) | C62: Rend (kWh/l)
B63: =IF($I$20=1,B72,B80) -> 18000 | C63: 4.534 | E63: 18.29444389 | H63: Crear la curva de costo con las condiciones
B64: 16000 | C64: 4.519 | E64: 18.35170143 | H64: actuales del calculo.
B65: 14000 | C65: 4.4519 | E65: 18.61255695
B66: 12000 | C66: 4.335 | E66: 19.08630263 | H66: *Los datos de la curva solo se actualizan al presionar
B67: 10000 | C67: 4.177 | E67: 19.76874938 | H67: el botón
B70: Rendimiento combustible 1 | E70: Tabla de Mantenimientos
B71: Potencia (kW) | C71: Rend (kWh/l) | E71: Descripción | I71: Valor | J71: Unidades
B72: 18000 | C72: 4.534 | E72: Intervalo entre inspecciones de mantenimiento tipo 1, IMT1 | I72: 3000 | J72: horas
B73: 16000 | C73: 4.519 | E73: Intervalo entre inspecciones de mantenimiento tipo 2, IMT2 | I73: 12000 | J73: horas
B74: 14000 | C74: 4.4519 | E74: Intervalo entre inspecciones de mantenimiento tipo 3, IMT3 | I74: 16000 | J74: horas
B75: 12000 | C75: 4.335 | E75: Intervalo entre inspecciones de mantenimiento tipo 3, IMT4 | I75: 32000 | J75: horas
B76: 10000 | C76: 4.177 | E76: Costo total de una inspecciónde mantenimiento tipo 1, MT1 | I76: 52925 | J76: $
E77: Costo total de una inspección de mantenimiento tipo 2, MT2 | I77: 58500 | J77: $
B78: Rendimiento Combustible 2 | E78: Costo total de una inspección de mantenimiento tipo 3, MT3 | I78: 701332 | J78: $
B79: Potencia (kW) | C79: Rend (kWh/l) | E79: Costo total de una inspección de mantenimiento tipo 3, MT4 | I79: 2500000 | J79: $
B80: 17000 | C80: 4.260651629
B81: 16000 | C81: 4.432132964
B82: 12000 | C82: 4.395604396
B83: 8000 | C83: 4.17101147
B84: 4000 | C84: 3.571428571

Sheet OROTINA
C1: INSTITUTO COSTARRICENSE DE ELECTRICIDAD | I1: Código: | M1: INSTITUTO COSTARRICENSE DE ELECTRICIDAD | R1: Código:
I2: PE-05-FO-90-002 | R2: PE-05-FO-90-002
C3: UEN PRODUCCIÓN DE ELECTRICIDAD | I3: Versión: | M3: UEN PRODUCCIÓN DE ELECTRICIDAD | R3: Versión:
I4: 2 | R4: 1
C5: REPORTE DEL COSTO VARIABLE OPERATIVO | I5: Rige a partir de: | M5: REPORTE DEL COSTO VARIABLE OPERATIVO | R5: Rige a partir de:
I6: 2012-06-12 | R6: 2012-06-12
B8: Fecha: | C8: 2014-11-04 | E8: Planta: | F8: Orotina | H8: Unidad: | I8: 1 - 2 | M8: COSTOS DE ARRANQUE Y PARO
B10: COMBUSTIBLE 1 PRINCIPAL | G10: OPERACIÓN | M10: Tipo de Arranque: | N10: Caliente
B11: Tipo | D11: HFO Clase C | G11: Horas esperadas de operación, hop | I11: =1299.04+82.47*I12 -> 2941.702036 | J11: hrs/periodo | M11: Descripción: | N11: Arranque después de no más de 3 horas de la última parada. Utiliza solo búnker
B12: Poder calorico bajo (LHV) | D12: =D13/1.06*0.96 -> 37132.07547 | E12: BTU/l | G12: Generación bruta (PP) | I12: =39.836596/2 -> 19.918298 | J12: GWh/periodo
B13: Pder calórico bajo (LHV) | D13: 41000 | E13: kJ/kg | G13: Consumo por servicio propio: | I13: 3.93 | J13: % | L13: PÉRDIDA DE EFICIENCIA EN LA TOMA DE CARGA Y DESCARGA | Q13: CONDICIONES DE OTROS ARRANQUES
B14: Precio combustible | D14: 471.56 | E14: colones/l | L14: Consumo de combustible durante la carga (X) | N14: 260 | O14: =+IF($B$11="Turbo vapor","toneladas","litros") -> litros | Q14: 2. Arranque tibio, no más de 12 horas después de la última parada. El arranque se realiza en diesel y se requiere unos 15 minutos adicionales de diesel. 3. Arranque en frío, puede llegar a requerir hasta 3 horas de operación en diesel luego del arranque. El arranque se realiza en diesel. 4. Se utiliza 5 horas de penalización por mantenimento.
M15: Energía generada durante la toma de carga (Ex) | N15: 967 | O15: kWh
M16: Rendimiento de la unidad a potencia nominal (Rnom) | N16: =IF(N38=1,C72,C80) -> 4.37 | O16: =+CONCATENATE("kWh/",IF($B$11="Turbo vapor","toneladas","litros")) -> kWh/litros
B17: COMBUSTIBLE 2 SECUNDARIO | G17: CONDICIONES | L17: Consumo de combustible durante la descarga (Y) | N17: 252 | O17: =+IF($B$11="Turbo vapor","toneladas","litros") -> litros
B18: Tipo | D18: Diesel | G18: Potencia efectiva actual | I18: 5041 | J18: kW | M18: Energía generada durante la toma de descarga (Ey) | N18: 1058 | O18: kWh
B19: Poder calorico bajo (LHV) | D19: =D20/1.06*0.84 -> 33825.84906 | E19: BTU/l | G19: Tipo de cambio | I19: 545.65 | J19: colones/$
B20: Pder calórico bajo (LHV) | D20: 42685 | E20: kJ/kg | G20: Tipo de combustible | I20: 1
B21: Precio combustible | D21: 618.31 | E21: colones/l | H21: Método calculo de repuestos | I21: HISTORICO
H22: Porcentaje de uso del combustible 2 | I22: 0.0404
L23: CONSUMO DE COMBUSTIBLE EN LAS RAMPAS | Q23: TIEMPO DE ARRANQUE Y PARO
L24: Consumo de combustible arranque (Ga) | N24: 7 | O24: =+CONCATENATE(IF($B$11="Turbo vapor","toneladas","litros"),"/arranque") -> litros/arranque | Q24: Tiempo de arranque (ta) | R24: 5 | S24: minutos
B25: CALCULO DE COSTOS VARIABLES OPERATIVOS | L25: Consumo de combustible parada (Gp) | N25: 15 | O25: =+CONCATENATE(IF($B$11="Turbo vapor","toneladas","litros"),"/arranque") -> litros/arranque | Q25: Tiempo de parada (tp) | R25: 10 | S25: minutos
L26: Consumo de combustible asumiendo carga (Gc) | N26: =+IF(OR(N14="",N15="",N16=""),0,IF((N14-(N15/$N$16))<0,0,N14-(N15/$N$16))) -> 38.71853547 | O26: =+CONCATENATE(IF($B$11="Turbo vapor","toneladas","litros"),"/arranque") -> litros/arranque | Q26: Tiempo de rampa de carga (tc) | R26: 30 | S26: minutos
B27: COMBUSTIBLE | G27: TRATAMIENTO QUÍMICO | L27: Consumo de combustible asumiendo descarga (Gd) | N27: =+IF(OR(N17="",N18="",N16=""),0,IF((N17-(N18/$N$16))<0,0,N17-(N18/$N$16))) -> 9.894736842 | O27: =+CONCATENATE(IF($B$11="Turbo vapor","toneladas","litros"),"/arranque") -> litros/arranque | Q27: Tiempo de rampa de descarga (td) | R27: 20 | S27: minutos
B28: Rendimiento promedio | D28: =VLOOKUP(I18,$B$63:$C$67,2,FALSE) -> 4.37 | E28: kWh/l | G28: Precio de productos quimicos a granel (PPQ) | J28: colones/l
B29: Heat Rate | D29: =IF(I20=1,D12,D19)/D28 -> 8497.042442 | E29: BTU/kWh | G29: Consumo de productos, durante ciclo operativo (CPQ) | J29: l/h | L29: Consumo total de combustible (Gi) | N29: =N27+N26+N25+N24 -> 70.61327231 | O29: =+CONCATENATE(IF($B$11="Turbo vapor","toneladas","litros"),"/arranque") -> litros/arranque
B30: Eficiencia electrica del turbogrupo | D30: =3413/D29 -> 0.4016691717 | G30: Costo Variable de productos quimicos (CVPQ) | I30: =(I28*I29)/(I12*1000000*(1-I13/100)) -> 0 | J30: colones/kWh
L31: COSTO POR MANTENIMIENTO
B32: Costo Variable por Combustible (CVC) | D32: =IF(I20=1,D14,D21)/(D28*(1-I13/100)) -> 112.3227509 | E32: colones/kWh | G32: AGUA DE PROCESO | L32: Costos de mantenimiento por hora de operación (M) | N32: =IF(I21="HISTORICO",I41,I48)*B63*(1-I13/100) -> 29741.9 | O32: colones/hop
D33: =D32/I19*100 -> 20.585128 | E33: cent-$/kWh | G33: Precio del agua potable o cruda, mes de declaracion (PA) | J33: colones/m3 | L33: Horas equivalente de operación por arranque (hpa) | N33: 5 | O33: hop
B34: ARRANQUE | G34: Consumo agua, durante ciclo operativo (CAA) | J34: m3/h
B35: Costo por arranque (CPA) | D35: =Q44 -> 185661.1973 | E35: colones/arr | G35: Costo Variable por agua potable o cruda (CVAP) | I35: =I33*I34/(I12*1000000*(1-I13/100)) -> 0 | J35: colones/kWh | L35: Costo por mantenimiento | N35: =+N32*N33 -> 148709.5 | O35: colones/arranque
B36: Número de arranques estimado (#A) | D36: =60.5+2.17*I12 -> 103.7227067 | E36: arranques
B37: Ciclo de arranque (CA) | D37: =I12*1000000*(1-I13/100)/D36 -> 184487.1726 | E37: kWh/arranque | L37: COSTO POR COMBUSTIBLE
B38: Costo Variable por Arranque (CVA) | D38: =D35/D37 -> 1.00636372 | E38: colones/kWh | G38: MANTENIMIENTO HISTÓRICO | M38: Tipo de combustible: | N38: 1
G39: Costo unitario repuestos (CUMRep) | I39: 5.9 | J39: colones/kWh | M39: Precio Combustible: | N39: =IF(N38=1,D14,D21) -> 471.56 | O39: =+CONCATENATE("colones/",IF($B$11="Turbo vapor","ton","litros")) -> colones/litros
B40: LUBRICANTES
B41: Precio del lubricante (PL) | D41: 1003.44 | E41: colones/l | G41: Costo Variable de mantenimiento (CVM) | I41: =I39/(1-I13/100) -> 6.141355262 | J41: colones/kWh | L41: Costo por Combustible | M41: Costo por combustible | N41: =(N24+N26)*N39+(N25+N27)*D21 -> 36951.69732 | O41: colones/arranque
B42: Consumo lubricante (CL) | D42: 0.00074 | E42: l/kWh
B44: Costo Variable por lubricantes (CVL) | D44: =D41*D42/(1-I13/100) -> 0.7729214115 | E44: colones/kWh | G44: MANTENIMIENTO ALTERNATIVO | L44: COSTO ARRANQUE Y PARO (CPA) | Q44: =IF(L47="Caliente",N35+N41,IF(L47="Tibio",N35+N41+N46,N35+N41+N47)) -> 185661.1973 | R44: colones/arranque
G45: Valor de los repuestos durante el ciclo operativo (RPTM) | I45: =(I76/I72+I77/I73+I78/I74+I79/I75) -> 13103.05534 | J45: colones/h
G46: Valor de otros insumos durante el ciclo operativo (OIM) | J46: colones/h | L46: TIPO ARRANQUE | M46: Adicional arranque en tíbio | N46: =(15/60)*($B$80/$C$80*$D$21-$B$63/$C$63*$D$14) -> 59749.46954 | Q46: =Q44/I19 -> 340.2569364 | R46: $/arranque
B47: CONTROL Y MITIGACIÓN EMISIONES | G47: Valor de la mano de obra adicional (MOAM) | J47: colones/h | L47: Caliente | M47: Adicional arranque en frío | N47: =3*($B$80/$C$80*$D$21-$B$63/$C$63*$D$14) -> 716993.6345
B48: Precio quimicos (PQCME) | E48: colones/l | G48: Costo Variable de mantenimiento (CVM) | I48: =I45/(B63*(1-I13/100))+(I46+I47)/(B63*(1-I13/100)) -> 2.705628014 | J48: colones/kWh | L48: Comentarios:
B49: Consumo de quimicos (CQCME) | E49: l/hr | L49: 1. Esta planta utiliza normalmente diesel para arranques, por lo que el porcentaje de uso de diesel se verá afectado por el tipo de arranques que se realicen. Se considera que el porcentaje mostrado identifica las conficiones promedio utilizada en los últimos años. 2. El proceso de parada siempre se realizan con diesel desde el inicio de la secuencia de paro. 3. Para el arranque tíbio y caliente debe considerarse la utilización de diesel como tipo de combustible en el arranque. Adicionalmente se escoge el tipo de arranque en la pestaña indicada.
B50: Costo de mitigacion de emisiones (CVCME) | D50: =(D48/(I12*1000000*(1-I13/100)))*D49 -> 0 | E50: colones/kWh
B53: COSTOS VARIABLES TOTALES DE PRODUCCION (CVP) | H53: =IF(I21="HISTORICO",I41,I48)+D44+I35+D38+D32+I30+D50 -> 120.2433913 | I53: colones/kWh
H55: =H53/I19*100 -> 22.03672525 | I55: cent $/kWh
B57: Costo Variable de O&M (sin combustible) | H57: =(H55-D33) -> 1.45159725 | I57: cent $/kWh
B59: DATOS PARA EL CALCULO
B61: Rendimiento seleccionado | E61: CVC (cent $/kWh)
B62: Potencia (kW) | C62: Rend (kWh/l)
B63: =IF($I$20=1,B72,B80) -> 5041 | C63: 4.37 | E63: 21.96284961 | H63: Crear la curva de costo con las condiciones
B64: 4650 | C64: 4.46 | E64: 21.54903446 | H64: actuales del calculo.
B65: 4394 | C65: 4.38 | E65: 21.91603034
B66: 4178 | C66: 4.31 | E66: 22.24832765 | H66: *Los datos de la curva solo se actualizan al presionar
B67: 3865 | C67: 4.28 | E67: 22.3940682 | H67: el botón. Luego de cargar la curva es posible que
H68: la potencia seleccionada haya cambiado.
B70: Rendimiento combustible 1 | E70: Tabla de Mantenimientos
B71: Potencia (kW) | C71: Rend (kWh/l) | E71: Descripción | I71: Valor | J71: Unidades
B72: 5041 | C72: 4.37 | E72: Intervalo entre inspecciones de mantenimiento tipo 1, IMT1 | I72: 3750 | J72: horas
B73: 4650 | C73: 4.46 | E73: Intervalo entre inspecciones de mantenimiento tipo 2, IMT2 | I73: 750 | J73: horas
B74: 4394 | C74: 4.38 | E74: Intervalo entre inspecciones de mantenimiento tipo 3, IMT3 | I74: 1500 | J74: horas
B75: 4178 | C75: 4.31 | E75: Intervalo entre inspecciones de mantenimiento tipo 3, IMT4 | I75: 30000 | J75: horas
B76: 3865 | C76: 4.28 | E76: Costo total de una inspecciónde mantenimiento tipo 1, MT1 | I76: 0 | J76: colones
E77: Costo total de una inspección de mantenimiento tipo 2, MT2 | I77: 1130464.1 | J77: colones
B78: Rendimiento Combustible 2 | E78: Costo total de una inspección de mantenimiento tipo 3, MT3 | I78: 792691.77 | J78: colones
B79: Potencia (kW) | C79: Rend (kWh/l) | E79: Costo total de una inspección de mantenimiento tipo 3, MT4 | I79: 332019260.7 | J79: colones
B80: 5041 | C80: =C72*$D$19/$D$12 -> 3.980896799
B81: 4650 | C81: =C73*$D$19/$D$12 -> 4.062883232
B82: 4394 | C82: 3.990006402
B83: 4178 | C83: 3.926239177
B84: 3865 | C84: 3.898910366

Sheet GUAPILES
C1: INSTITUTO COSTARRICENSE DE ELECTRICIDAD | I1: Código: | M1: INSTITUTO COSTARRICENSE DE ELECTRICIDAD | R1: Código:
I2: PE-05-FO-90-002 | R2: PE-05-FO-90-002
C3: UEN PRODUCCIÓN DE ELECTRICIDAD | I3: Versión: | M3: UEN PRODUCCIÓN DE ELECTRICIDAD | R3: Versión:
I4: 2 | R4: 1
C5: REPORTE DEL COSTO VARIABLE OPERATIVO | I5: Rige a partir de: | M5: REPORTE DEL COSTO VARIABLE OPERATIVO | R5: Rige a partir de:
I6: 2012-06-12 | R6: 2012-06-12
B8: Fecha: | C8: 2014-11-04 | E8: Planta: | F8: Guapiles | H8: Unidad: | I8: 1 - 2 | M8: COSTOS DE ARRANQUE Y PARO
B10: COMBUSTIBLE 1 PRINCIPAL | G10: OPERACIÓN | M10: Tipo de Arranque: | N10: Caliente
B11: Tipo | D11: HFO Clase C | G11: Horas esperadas de operación, hop | I11: =462.66+119.83*I12 -> 3154.688283 | J11: hrs/periodo | M11: Descripción: | N11: Arranque después de no más de 3 horas de la última parada. Utiliza solo búnker
B12: Poder calorico bajo (LHV) | D12: =D13/1.06*0.96 -> 37132.07547 | E12: BTU/l | G12: Generación bruta (PP) | I12: =44.93079/2 -> 22.465395 | J12: GWh/periodo
B13: Pder calórico bajo (LHV) | D13: 41000 | E13: kJ/kg | G13: Consumo por servicio propio: | I13: 3.93 | J13: % | L13: PÉRDIDA DE EFICIENCIA EN LA TOMA DE CARGA Y DESCARGA | Q13: CONDICIONES DE OTROS ARRANQUES
B14: Precio combustible | D14: 447.44 | E14: colones/l | L14: Consumo de combustible durante la carga (X) | N14: 260 | O14: =+IF($B$11="Turbo vapor","toneladas","litros") -> litros | Q14: 2. Arranque tibio, no más de 12 horas después de la última parada. El arranque se realiza en diesel y se requiere unos 15 minutos adicionales de diesel. 3. Arranque en frío, puede llegar a requerir hasta 3 horas de operación en diesel luego del arranque. El arranque se realiza en diesel. 4. Se utilizan 5 horas de penalización por mantenimento.
M15: Energía generada durante la toma de carga (Ex) | N15: 967 | O15: kWh
M16: Rendimiento de la unidad a potencia nominal (Rnom) | N16: =IF(N38=1,C72,C80) -> 4.39 | O16: =+CONCATENATE("kWh/",IF($B$11="Turbo vapor","toneladas","litros")) -> kWh/litros
B17: COMBUSTIBLE 2 SECUNDARIO | G17: CONDICIONES | L17: Consumo de combustible durante la descarga (Y) | N17: 252 | O17: =+IF($B$11="Turbo vapor","toneladas","litros") -> litros
B18: Tipo | D18: Diesel | G18: Potencia efectiva actual | I18: 7360 | J18: kW | M18: Energía generada durante la toma de descarga (Ey) | N18: 1058 | O18: kWh
B19: Poder calorico bajo (LHV) | D19: =D20/1.06*0.84 -> 33825.84906 | E19: BTU/l | G19: Tipo de cambio | I19: 545.65 | J19: colones/$
B20: Pder calórico bajo (LHV) | D20: 42685 | E20: kJ/kg | G20: Tipo de combustible | I20: 1
B21: Precio combustible | D21: 475.15 | E21: colones/l | H21: Método calculo de repuestos | I21: HISTORICO
H22: Porcentaje de uso del combustible 2 | I22: 0.0269
L23: CONSUMO DE COMBUSTIBLE EN LAS RAMPAS | Q23: TIEMPO DE ARRANQUE Y PARO
L24: Consumo de combustible arranque (Ga) | N24: 7 | O24: =+CONCATENATE(IF($B$11="Turbo vapor","toneladas","litros"),"/arranque") -> litros/arranque | Q24: Tiempo de arranque (ta) | R24: 5 | S24: minutos
B25: CALCULO DE COSTOS VARIABLES OPERATIVOS | L25: Consumo de combustible parada (Gp) | N25: 15 | O25: =+CONCATENATE(IF($B$11="Turbo vapor","toneladas","litros"),"/arranque") -> litros/arranque | Q25: Tiempo de parada (tp) | R25: 10 | S25: minutos
L26: Consumo de combustible asumiendo carga (Gc) | N26: =+IF(OR(N14="",N15="",N16=""),0,IF((N14-(N15/$N$16))<0,0,N14-(N15/$N$16))) -> 39.72665148 | O26: =+CONCATENATE(IF($B$11="Turbo vapor","toneladas","litros"),"/arranque") -> litros/arranque | Q26: Tiempo de rampa de carga (tc) | R26: 30 | S26: minutos
B27: COMBUSTIBLE | G27: TRATAMIENTO QUÍMICO | L27: Consumo de combustible asumiendo descarga (Gd) | N27: =+IF(OR(N17="",N18="",N16=""),0,IF((N17-(N18/$N$16))<0,0,N17-(N18/$N$16))) -> 10.9977221 | O27: =+CONCATENATE(IF($B$11="Turbo vapor","toneladas","litros"),"/arranque") -> litros/arranque | Q27: Tiempo de rampa de descarga (td) | R27: 20 | S27: minutos
B28: Rendimiento promedio | D28: =VLOOKUP(I18,$B$63:$C$67,2,FALSE) -> 4.39 | E28: kWh/l | G28: Precio de productos quimicos a granel (PPQ) | J28: colones/l
B29: Heat Rate | D29: =IF(I20=1,D12,D19)/D28 -> 8458.331543 | E29: BTU/kWh | G29: Consumo de productos, durante ciclo operativo (CPQ) | J29: l/h | L29: Consumo total de combustible (Gi) | N29: =N27+N26+N25+N24 -> 72.72437358 | O29: =+CONCATENATE(IF($B$11="Turbo vapor","toneladas","litros"),"/arranque") -> litros/arranque
B30: Eficiencia electrica del turbogrupo | D30: =3413/D29 -> 0.4035074746 | G30: Costo Variable de productos quimicos (CVPQ) | I30: =(I28*I29)/(I12*1000000*(1-I13/100)) -> 0 | J30: colones/kWh
L31: COSTO POR MANTENIMIENTO
B32: Costo Variable por Combustible (CVC) | D32: =IF(I20=1,D14,D21)/(D28*(1-I13/100)) -> 106.0919655 | E32: colones/kWh | G32: AGUA DE PROCESO | L32: Costos de mantenimiento por hora de operación (M) | N32: =IF(I21="HISTORICO",I41,I48)*B63*(1-I13/100) -> 65136 | O32: colones/hop
D33: =D32/I19*100 -> 19.44322652 | E33: cent-$/kWh | G33: Precio del agua potable o cruda, mes de declaracion (PA) | J33: colones/m3 | L33: Horas equivalente de operación por arranque (hpa) | N33: 5 | O33: hop
B34: ARRANQUE | G34: Consumo agua, durante ciclo operativo (CAA) | J34: m3/h
B35: Costo por arranque (CPA) | D35: =Q44 -> 358940.1906 | E35: colones/arr | G35: Costo Variable por agua potable o cruda (CVAP) | I35: =I33*I34/(I12*1000000*(1-I13/100)) -> 0 | J35: colones/kWh | L35: Costo por mantenimiento | N35: =+N32*N33 -> 325680 | O35: colones/arranque
B36: Número de arranques estimado (#A) | D36: =80.07+0.21*I12 -> 84.78773295 | E36: arranques
B37: Ciclo de arranque (CA) | D37: =I12*1000000*(1-I13/100)/D36 -> 254547.4944 | E37: kWh/arranque | L37: COSTO POR COMBUSTIBLE
B38: Costo Variable por Arranque (CVA) | D38: =D35/D37 -> 1.410110877 | E38: colones/kWh | G38: MANTENIMIENTO HISTÓRICO | M38: Tipo de combustible: | N38: 1
G39: Costo unitario repuestos (CUMRep) | I39: 8.85 | J39: colones/kWh | M39: Precio Combustible: | N39: =IF(N38=1,D14,D21) -> 447.44 | O39: =+CONCATENATE("colones/",IF($B$11="Turbo vapor","ton","litros")) -> colones/litros
B40: LUBRICANTES
B41: Precio del lubricante (PL) | D41: 1003.44 | E41: colones/l | G41: Costo Variable de mantenimiento (CVM) | I41: =I39/(1-I13/100) -> 9.212032893 | J41: colones/kWh | L41: Costo por Combustible | M41: Costo por combustible | N41: =(N24+N26)*N39+(N25+N27)*D21 -> 33260.19059 | O41: colones/arranque
B42: Consumo lubricante (CL) | D42: 0.00162 | E42: l/kWh
B44: Costo Variable por lubricantes (CVL) | D44: =D41*D42/(1-I13/100) -> 1.692071198 | E44: colones/kWh | G44: MANTENIMIENTO ALTERNATIVO | L44: COSTO ARRANQUE Y PARO (CPA) | Q44: =IF(L47="Caliente",N35+N41,IF(L47="Tibio",N35+N41+N46,N35+N41+N47)) -> 358940.1906 | R44: colones/arranque
G45: Valor de los repuestos durante el ciclo operativo (RPTM) | I45: =(I76/I72+I77/I73+I78/I74+I79/I75) -> 17470.74045 | J45: colones/h
G46: Valor de otros insumos durante el ciclo operativo (OIM) | J46: colones/h | L46: TIPO ARRANQUE | M46: Adicional arranque en tíbio | N46: =(15/60)*($B$80/$C$80*$D$21-$B$63/$C$63*$D$14) -> -37802.45622 | Q46: =Q44/I19 -> 657.8212968 | R46: $/arranque
B47: CONTROL Y MITIGACIÓN EMISIONES | G47: Valor de la mano de obra adicional (MOAM) | J47: colones/h | L47: Caliente | M47: Adicional arranque en frío | N47: =3*($B$80/$C$80*$D$21-$B$63/$C$63*$D$14) -> -453629.4746
B48: Precio quimicos (PQCME) | E48: colones/l | G48: Costo Variable de mantenimiento (CVM) | I48: =I45/(B63*(1-I13/100))+(I46+I47)/(B63*(1-I13/100)) -> 2.470846163 | J48: colones/kWh | L48: Comentarios:
B49: Consumo de quimicos (CQCME) | E49: l/hr | L49: 1. Esta planta utiliza normalmente diesel para arranques, por lo que el porcentaje de uso de diesel se verá afectado por el tipo de arranques que se realicen. Se considera que el porcentaje mostrado identifica las conficiones promedio utilizada en los últimos años. 2. El proceso de parada siempre se realizan con diesel desde el inicio de la secuencia de paro. 3. Para el arranque tíbio y caliente debe considerarse la utilización de diesel como tipo de combustible en el arranque. Adicionalmente se escoge el tipo de arranque en la pestaña indicada.
B50: Costo de mitigacion de emisiones (CVCME) | D50: =(D48/(I12*1000000*(1-I13/100)))*D49 -> 0 | E50: colones/kWh
B53: COSTOS VARIABLES TOTALES DE PRODUCCION (CVP) | H53: =IF(I21="HISTORICO",I41,I48)+D44+I35+D38+D32+I30+D50 -> 118.4061805 | I53: colones/kWh
H55: =H53/I19*100 -> 21.70002391 | I55: cent $/kWh
B57: Costo Variable de O&M (sin combustible) | H57: =(H55-D33) -> 2.256797392 | I57: cent $/kWh
B59: DATOS PARA EL CALCULO
B61: Rendimiento seleccionado | E61: CVC (cent $/kWh)
B62: Potencia (kW) | C62: Rend (kWh/l)
B63: =IF($I$20=1,B72,B80) -> 7360 | C63: 4.39 | E63: 20.70000406 | H63: Crear la curva de costo con las condiciones
B64: 6800 | C64: 4.25 | E64: 21.3073404 | H64: actuales del calculo.
B65: 6400 | C65: 4.18 | E65: 21.62626462
B66: 6000 | C66: 4.13 | E66: 21.86068662 | H66: *Los datos de la curva solo se actualizan al presionar
B67: 5500 | C67: 4.09 | E67: 22.05235095 | H67: el botón. Luego de cargar la curva es posible que
H68: la potencia seleccionada haya cambiado.
B70: Rendimiento combustible 1 | E70: Tabla de Mantenimientos
B71: Potencia (kW) | C71: Rend (kWh/l) | E71: Descripción | I71: Valor | J71: Unidades
B72: 7360 | C72: 4.39 | E72: Intervalo entre inspecciones de mantenimiento tipo 1, IMT1 | I72: 3750 | J72: horas
B73: 6800 | C73: 4.25 | E73: Intervalo entre inspecciones de mantenimiento tipo 2, IMT2 | I73: 750 | J73: horas
B74: 6400 | C74: 4.18 | E74: Intervalo entre inspecciones de mantenimiento tipo 3, IMT3 | I74: 1500 | J74: horas
B75: 6000 | C75: 4.13 | E75: Intervalo entre inspecciones de mantenimiento tipo 3, IMT4 | I75: 30000 | J75: horas
B76: 5500 | C76: 4.09 | E76: Costo total de una inspecciónde mantenimiento tipo 1, MT1 | I76: 0 | J76: colones
E77: Costo total de una inspección de mantenimiento tipo 2, MT2 | I77: =1.33333333333333*1130464.1 -> 1507285.467 | J77: colones
B78: Rendimiento Combustible 2 | E78: Costo total de una inspección de mantenimiento tipo 3, MT3 | I78: =1.33333333333333*792691.77 -> 1056922.36 | J78: colones
B79: Potencia (kW) | C79: Rend (kWh/l) | E79: Costo total de una inspección de mantenimiento tipo 3, MT4 | I79: =1.33333333333333*332019260.68 -> 442692347.6 | J79: colones
B80: 5041 | C80: =C72*$D$19/$D$12 -> 3.999116006
B81: 4650 | C81: =C73*$D$19/$D$12 -> 3.871581555
B82: 4394 | C82: 3.807814329
B83: 4178 | C83: 3.762266311
B84: 3865 | C84: 3.725827896

Sheet SAN ANTONIO
C1: INSTITUTO COSTARRICENSE DE ELECTRICIDAD | I1: Código: | M1: INSTITUTO COSTARRICENSE DE ELECTRICIDAD | R1: Código:
I2: PE-05-FO-90-002 | R2: PE-05-FO-90-002
C3: UEN PRODUCCIÓN DE ELECTRICIDAD | I3: Versión: | M3: UEN PRODUCCIÓN DE ELECTRICIDAD | R3: Versión:
I4: 2 | R4: 1
C5: REPORTE DEL COSTO VARIABLE OPERATIVO | I5: Rige a partir de: | M5: REPORTE DEL COSTO VARIABLE OPERATIVO | R5: Rige a partir de:
I6: 2012-06-12 | R6: 2012-06-12
B8: Fecha: | C8: 2014-11-04 | E8: Planta: | F8: San Antonio | H8: Unidad: | I8: 3 - 4 | M8: COSTOS DE ARRANQUE Y PARO
B10: COMBUSTIBLE 1 PRINCIPAL | G10: OPERACIÓN | M10: Tipo de Arranque: | N10: Frío
B11: Tipo | D11: Diesel | G11: Horas esperadas de operación, hop | I11: =68.31+53.74*I12 -> 400.7837148 | J11: hrs/periodo | M11: Descripción: | N11: Arranque luego de varios días de no operación.
B12: Poder calorico bajo (LHV) | D12: =D13/1.06*0.96 -> 38400 | E12: BTU/l | G12: Generación bruta (PP) | I12: =12.373417/2 -> 6.1867085 | J12: GWh/periodo
B13: Pder calórico bajo (LHV) | D13: 42400 | E13: kJ/kg | G13: Consumo por servicio propio: | I13: 1.27 | J13: % | L13: PÉRDIDA DE EFICIENCIA EN LA TOMA DE CARGA Y DESCARGA | Q13: CONDICIONES DE OTROS ARRANQUES
B14: Precio combustible | D14: 564.53 | E14: colones/l | L14: Consumo de combustible durante la carga (X) | N14: 418 | O14: =+IF($B$11="Turbo vapor","toneladas","litros") -> litros | Q14: Los arranques en caliente son poco comunes en este tipo de plantas por su función del respaldo. Por lo que solo se considera un tipo de arranque.
M15: Energía generada durante la toma de carga (Ex) | N15: 565.4 | O15: kWh
M16: Rendimiento de la unidad a potencia nominal (Rnom) | N16: =IF(N38=1,C72,C80) -> 2.569 | O16: =+CONCATENATE("kWh/",IF($B$11="Turbo vapor","toneladas","litros")) -> kWh/litros
B17: COMBUSTIBLE 2 SECUNDARIO | G17: CONDICIONES | L17: Consumo de combustible durante la descarga (Y) | N17: 418 | O17: =+IF($B$11="Turbo vapor","toneladas","litros") -> litros
B18: Tipo | G18: Potencia efectiva actual | I18: 18500 | J18: kW | M18: Energía generada durante la toma de descarga (Ey) | N18: 565.4 | O18: kWh
B19: Poder calorico bajo (LHV) | D19: =D20/1.06*0.84 -> 0 | E19: BTU/l | G19: Tipo de cambio | I19: 545.65 | J19: colones/$
B20: Pder calórico bajo (LHV) | E20: kJ/kg | G20: Tipo de combustible | I20: 1
B21: Precio combustible | E21: colones/l | H21: Método calculo de repuestos | I21: HISTORICO
H22: Porcentaje de uso del combustible 2 | I22: No aplica
L23: CONSUMO DE COMBUSTIBLE EN LAS RAMPAS | Q23: TIEMPO DE ARRANQUE Y PARO
L24: Consumo de combustible arranque (Ga) | N24: 220 | O24: =+CONCATENATE(IF($B$11="Turbo vapor","toneladas","litros"),"/arranque") -> litros/arranque | Q24: Tiempo de arranque (ta) | R24: 11 | S24: minutos
B25: CALCULO DE COSTOS VARIABLES OPERATIVOS | L25: Consumo de combustible parada (Gp) | N25: 180 | O25: =+CONCATENATE(IF($B$11="Turbo vapor","toneladas","litros"),"/arranque") -> litros/arranque | Q25: Tiempo de parada (tp) | R25: 11 | S25: minutos
L26: Consumo de combustible asumiendo carga (Gc) | N26: =+IF(OR(N14="",N15="",N16=""),0,IF((N14-(N15/$N$16))<0,0,N14-(N15/$N$16))) -> 197.9143636 | O26: =+CONCATENATE(IF($B$11="Turbo vapor","toneladas","litros"),"/arranque") -> litros/arranque | Q26: Tiempo de rampa de carga (tc) | R26: 4.2 | S26: minutos
B27: COMBUSTIBLE | G27: TRATAMIENTO QUÍMICO | L27: Consumo de combustible asumiendo descarga (Gd) | N27: =+IF(OR(N17="",N18="",N16=""),0,IF((N17-(N18/$N$16))<0,0,N17-(N18/$N$16))) -> 197.9143636 | O27: =+CONCATENATE(IF($B$11="Turbo vapor","toneladas","litros"),"/arranque") -> litros/arranque | Q27: Tiempo de rampa de descarga (td) | R27: 4.2 | S27: minutos
B28: Rendimiento promedio | D28: =VLOOKUP(I18,$B$63:$C$67,2,FALSE) -> 2.569 | E28: kWh/l | G28: Precio de productos quimicos a granel (PPQ) | J28: colones/l
B29: Heat Rate | D29: =IF(I20=1,D12,D19)/D28 -> 14947.45037 | E29: BTU/kWh | G29: Consumo de productos, durante ciclo operativo (CPQ) | J29: l/h | L29: Consumo total de combustible (Gi) | N29: =N27+N26+N25+N24 -> 795.8287271 | O29: =+CONCATENATE(IF($B$11="Turbo vapor","toneladas","litros"),"/arranque") -> litros/arranque
B30: Eficiencia electrica del turbogrupo | D30: =3413/D29 -> 0.2283332552 | G30: Costo Variable de productos quimicos (CVPQ) | I30: =(I28*I29)/(I12*1000000*(1-I13/100)) -> 0 | J30: colones/kWh
L31: COSTO POR MANTENIMIENTO
B32: Costo Variable por Combustible (CVC) | D32: =IF(I20=1,D14,D21)/(D28*(1-I13/100)) -> 222.5736689 | E32: colones/kWh | G32: AGUA DE PROCESO | L32: Costos de mantenimiento por hora de operación (M) | N32: =IF(I21="HISTORICO",I41,I48)*B63*(1-I13/100) -> 63270 | O32: colones/hop
D33: =D32/I19*100 -> 40.79055601 | E33: cent-$/kWh | G33: Precio del agua potable o cruda, mes de declaracion (PA) | J33: colones/m3 | L33: Horas equivalente de operación por arranque (hpa) | N33: 20 | O33: hop
B34: ARRANQUE | G34: Consumo agua, durante ciclo operativo (CAA) | J34: m3/h
B35: Costo por arranque (CPA) | D35: =Q44 -> 1714669.191 | E35: colones/arr | G35: Costo Variable por agua potable o cruda (CVAP) | I35: =I33*I34/(I12*1000000*(1-I13/100)) -> 0 | J35: colones/kWh | L35: Costo por mantenimiento | N35: =+N32*N33 -> 1265400 | O35: colones/arranque
B36: Número de arranques estimado (#A) | D36: =15.25+3.83*I12 -> 38.94509355 | E36: arranques
B37: Ciclo de arranque (CA) | D37: =I12*1000000*(1-I13/100)/D36 -> 156839.7132 | E37: kWh/arranque | L37: COSTO POR COMBUSTIBLE
B38: Costo Variable por Arranque (CVA) | D38: =D35/D37 -> 10.93262132 | E38: colones/kWh | G38: MANTENIMIENTO HISTÓRICO | M38: Tipo de combustible: | N38: 1
G39: Costo unitario repuestos (CUMRep) | I39: 3.42 | J39: colones/kWh | M39: Precio Combustible: | N39: =IF(N38=1,D14,D21) -> 564.53 | O39: =+CONCATENATE("colones/",IF($B$11="Turbo vapor","ton","litros")) -> colones/litros
B40: LUBRICANTES
B41: Precio del lubricante (PL) | D41: 0 | E41: colones/l | G41: Costo Variable de mantenimiento (CVM) | I41: =I39/(1-I13/100) -> 3.463992707 | J41: colones/kWh | L41: Costo por Combustible | M41: Costo por combustible | N41: =N29*N39 -> 449269.1913 | O41: colones/arranque
B42: Consumo lubricante (CL) | D42: 0 | E42: l/kWh
B44: Costo Variable por lubricantes (CVL) | D44: =D41*D42/(1-I13/100) -> 0 | E44: colones/kWh | G44: MANTENIMIENTO ALTERNATIVO | L44: COSTO ARRANQUE Y PARO (CPA) | Q44: =N35+N41 -> 1714669.191 | R44: colones/arranque
G45: Valor de los repuestos durante el ciclo operativo (RPTM) | I45: =(I76/I72+I77/I73+I78/I74+I79/I75)*I19 -> 141323.35 | J45: colones/h
G46: Valor de otros insumos durante el ciclo operativo (OIM) | J46: colones/h | Q46: =Q44/I19 -> 3142.434145 | R46: $/arranque
B47: CONTROL Y MITIGACIÓN EMISIONES | G47: Valor de la mano de obra adicional (MOAM) | J47: colones/h
B48: Precio quimicos (PQCME) | E48: colones/l | G48: Costo Variable de mantenimiento (CVM) | I48: =I45/(B63*(1-I13/100))+(I46+I47)/(B63*(1-I13/100)) -> 7.73736453 | J48: colones/kWh | L48: Comentarios:
B49: Consumo de quimicos (CQCME) | E49: l/hr | L49: 1. Esta planta utiliza normalmente diesel para arranques, por lo que el porcentaje de uso de diesel se verá afectado por el tipo de arranques que se realicen. Se considera que el porcentaje mostrado identifica las conficiones promedio utilizada en los últimos años. 2. El proceso de parada siempre se realizan con diesel desde el inicio de la secuencia de paro. 3. Para el arranque tíbio y caliente debe considerarse la utilización de diesel como tipo de combustible en el arranque. Adicionalmente se escoge el tipo de arranque en la pestaña indicada.
B50: Costo de mitigacion de emisiones (CVCME) | D50: =(D48/(I12*1000000*(1-I13/100)))*D49 -> 0 | E50: colones/kWh
B53: COSTOS VARIABLES TOTALES DE PRODUCCION (CVP) | H53: =IF(I21="HISTORICO",I41,I48)+D44+I35+D38+D32+I30+D50 -> 236.9702829 | I53: colones/kWh
H55: =H53/I19*100 -> 43.42898981 | I55: cent $/kWh
B57: Costo Variable de O&M (sin combustible) | H57: =(H55-D33) -> 2.638433799 | I57: cent $/kWh
B59: DATOS PARA EL CALCULO
B61: Rendimiento seleccionado | E61: CVC (cent $/kWh)
B62: Potencia (kW) | C62: Rend (kWh/l)
B63: =IF($I$20=1,B72,B80) -> 18500 | C63: 2.569 | E63: 48.47144508 | H63: Crear la curva de costo con las condiciones
B64: 18000 | C64: 2.52 | E64: 49.36126989 | H64: actuales del calculo.
B65: 16000 | C65: 2.35 | E65: 52.73611302
B66: 14000 | C66: 2.179 | E66: 56.66205693 | H66: *Los datos de la curva solo se actualizan al presionar
B67: 11000 | C67: 1.89 | E67: 64.91201766 | H67: el botón. Luego de cargar la curva es posible que
H68: la potencia seleccionada haya cambiado.
B70: Rendimiento combustible 1 | E70: Tabla de Mantenimientos
B71: Potencia (kW) | C71: Rend (kWh/l) | E71: Descripción | I71: Valor | J71: Unidades
B72: 18500 | C72: 2.569 | E72: Intervalo entre inspecciones de mantenimiento tipo 1, IMT1 | I72: 5000 | J72: horas
B73: 18000 | C73: 2.52 | E73: Intervalo entre inspecciones de mantenimiento tipo 2, IMT2 | I73: 10000 | J73: horas
B74: 16000 | C74: 2.35 | E74: Intervalo entre inspecciones de mantenimiento tipo 3, IMT3 | I74: 15000 | J74: horas
B75: 14000 | C75: 2.179 | E75: Intervalo entre inspecciones de mantenimiento tipo 3, IMT4 | I75: 20000 | J75: horas
B76: 11000 | C76: 1.89 | E76: Costo total de una inspecciónde mantenimiento tipo 1, MT1 | I76: 20000 | J76: dólares
E77: Costo total de una inspección de mantenimiento tipo 2, MT2 | I77: 50000 | J77: dólares
B78: Rendimiento Combustible 2 | E78: Costo total de una inspección de mantenimiento tipo 3, MT3 | I78: 1500000 | J78: dólares
B79: Potencia (kW) | C79: Rend (kWh/l) | E79: Costo total de una inspección de mantenimiento tipo 3, MT4 | I79: 3000000 | J79: dólares

Sheet BARRANCA
C1: INSTITUTO COSTARRICENSE DE ELECTRICIDAD | I1: Código: | M1: INSTITUTO COSTARRICENSE DE ELECTRICIDAD | R1: Código:
I2: PE-05-FO-90-002 | R2: PE-05-FO-90-002
C3: UEN PRODUCCIÓN DE ELECTRICIDAD | I3: Versión: | M3: UEN PRODUCCIÓN DE ELECTRICIDAD | R3: Versión:
I4: 2 | R4: 1
C5: REPORTE DEL COSTO VARIABLE OPERATIVO | I5: Rige a partir de: | M5: REPORTE DEL COSTO VARIABLE OPERATIVO | R5: Rige a partir de:
I6: 2012-06-12 | R6: 2012-06-12
B8: Fecha: | C8: 2014-11-04 | E8: Planta: | F8: Barranca | H8: Unidad: | I8: 1 - 2 | M8: COSTOS DE ARRANQUE Y PARO
B10: COMBUSTIBLE 1 PRINCIPAL | G10: OPERACIÓN | M10: Tipo de Arranque: | N10: Frío
B11: Tipo | D11: Diesel | G11: Horas esperadas de operación, hop | I11: =7.86+57.56*I12 -> 169.3178146 | J11: hrs/periodo | M11: Descripción: | N11: Arranque luego de varios días de no operación.
B12: Poder calorico bajo (LHV) | D12: =D13/1.06*0.96 -> 38762.26415 | E12: BTU/l | G12: Generación bruta (PP) | I12: =5.61007/2 -> 2.805035 | J12: GWh/periodo
B13: Pder calórico bajo (LHV) | D13: 42800 | E13: kJ/kg | G13: Consumo por servicio propio: | I13: 0.83 | J13: % | L13: PÉRDIDA DE EFICIENCIA EN LA TOMA DE CARGA Y DESCARGA | Q13: CONDICIONES DE OTROS ARRANQUES
B14: Precio combustible | D14: 631.83 | E14: colones/l | L14: Consumo de combustible durante la carga (X) | N14: 315 | O14: =+IF($B$11="Turbo vapor","toneladas","litros") -> litros | Q14: Los arranques en caliente son poco comunes en este tipo de plantas por su función del respaldo. Por lo que solo se considera un tipo de arranque.
M15: Energía generada durante la toma de carga (Ex) | N15: 519 | O15: kWh
M16: Rendimiento de la unidad a potencia nominal (Rnom) | N16: =IF(N38=1,C72,C80) -> 2.53 | O16: =+CONCATENATE("kWh/",IF($B$11="Turbo vapor","toneladas","litros")) -> kWh/litros
B17: COMBUSTIBLE 2 SECUNDARIO | G17: CONDICIONES | L17: Consumo de combustible durante la descarga (Y) | N17: 333 | O17: =+IF($B$11="Turbo vapor","toneladas","litros") -> litros
B18: Tipo | G18: Potencia efectiva actual | I18: 18500 | J18: kW | M18: Energía generada durante la toma de descarga (Ey) | N18: 661 | O18: kWh
B19: Poder calorico bajo (LHV) | D19: =D20/1.06*0.84 -> 0 | E19: BTU/l | G19: Tipo de cambio | I19: 545.65 | J19: colones/$
B20: Pder calórico bajo (LHV) | E20: kJ/kg | G20: Tipo de combustible | I20: 1
B21: Precio combustible | E21: colones/l | H21: Método calculo de repuestos | I21: HISTORICO
H22: Porcentaje de uso del combustible 2 | I22: No aplica
L23: CONSUMO DE COMBUSTIBLE EN LAS RAMPAS | Q23: TIEMPO DE ARRANQUE Y PARO
L24: Consumo de combustible arranque (Ga) | N24: 181 | O24: =+CONCATENATE(IF($B$11="Turbo vapor","toneladas","litros"),"/arranque") -> litros/arranque | Q24: Tiempo de arranque (ta) | R24: 11 | S24: minutos
B25: CALCULO DE COSTOS VARIABLES OPERATIVOS | L25: Consumo de combustible parada (Gp) | N25: 79 | O25: =+CONCATENATE(IF($B$11="Turbo vapor","toneladas","litros"),"/arranque") -> litros/arranque | Q25: Tiempo de parada (tp) | R25: 11 | S25: minutos
L26: Consumo de combustible asumiendo carga (Gc) | N26: =+IF(OR(N14="",N15="",N16=""),0,IF((N14-(N15/$N$16))<0,0,N14-(N15/$N$16))) -> 109.8616601 | O26: =+CONCATENATE(IF($B$11="Turbo vapor","toneladas","litros"),"/arranque") -> litros/arranque | Q26: Tiempo de rampa de carga (tc) | R26: 4.2 | S26: minutos
B27: COMBUSTIBLE | G27: TRATAMIENTO QUÍMICO | L27: Consumo de combustible asumiendo descarga (Gd) | N27: =+IF(OR(N17="",N18="",N16=""),0,IF((N17-(N18/$N$16))<0,0,N17-(N18/$N$16))) -> 71.73517787 | O27: =+CONCATENATE(IF($B$11="Turbo vapor","toneladas","litros"),"/arranque") -> litros/arranque | Q27: Tiempo de rampa de descarga (td) | R27: 4.2 | S27: minutos
B28: Rendimiento promedio | D28: =VLOOKUP(I18,$B$63:$C$67,2,FALSE) -> 2.53 | E28: kWh/l | G28: Precio de productos quimicos a granel (PPQ) | J28: colones/l
B29: Heat Rate | D29: =IF(I20=1,D12,D19)/D28 -> 15321.05302 | E29: BTU/kWh | G29: Consumo de productos, durante ciclo operativo (CPQ) | J29: l/h | L29: Consumo total de combustible (Gi) | N29: =N27+N26+N25+N24 -> 441.5968379 | O29: =+CONCATENATE(IF($B$11="Turbo vapor","toneladas","litros"),"/arranque") -> litros/arranque
B30: Eficiencia electrica del turbogrupo | D30: =3413/D29 -> 0.222765367 | G30: Costo Variable de productos quimicos (CVPQ) | I30: =(I28*I29)/(I12*1000000*(1-I13/100)) -> 0 | J30: colones/kWh
L31: COSTO POR MANTENIMIENTO
B32: Costo Variable por Combustible (CVC) | D32: =IF(I20=1,D14,D21)/(D28*(1-I13/100)) -> 251.8253281 | E32: colones/kWh | G32: AGUA DE PROCESO | L32: Costos de mantenimiento por hora de operación (M) | N32: =IF(I21="HISTORICO",I41,I48)*B63*(1-I13/100) -> 97310 | O32: colones/hop
D33: =D32/I19*100 -> 46.15143922 | E33: cent-$/kWh | G33: Precio del agua potable o cruda, mes de declaracion (PA) | J33: colones/m3 | L33: Horas equivalente de operación por arranque (hpa) | N33: 20 | O33: hop
B34: ARRANQUE | G34: Consumo agua, durante ciclo operativo (CAA) | J34: m3/h
B35: Costo por arranque (CPA) | D35: =Q44 -> 2225214.13 | E35: colones/arr | G35: Costo Variable por agua potable o cruda (CVAP) | I35: =I33*I34/(I12*1000000*(1-I13/100)) -> 0 | J35: colones/kWh | L35: Costo por mantenimiento | N35: =+N32*N33 -> 1946200 | O35: colones/arranque
B36: Número de arranques estimado (#A) | D36: =8.1+3.59*I12 -> 18.17007565 | E36: arranques
B37: Ciclo de arranque (CA) | D37: =I12*1000000*(1-I13/100)/D36 -> 153095.3015 | E37: kWh/arranque | L37: COSTO POR COMBUSTIBLE
B38: Costo Variable por Arranque (CVA) | D38: =D35/D37 -> 14.53482967 | E38: colones/kWh | G38: MANTENIMIENTO HISTÓRICO | M38: Tipo de combustible: | N38: 1
G39: Costo unitario repuestos (CUMRep) | I39: 5.26 | J39: colones/kWh | M39: Precio Combustible: | N39: =IF(N38=1,D14,D21) -> 631.83 | O39: =+CONCATENATE("colones/",IF($B$11="Turbo vapor","ton","litros")) -> colones/litros
B40: LUBRICANTES
B41: Precio del lubricante (PL) | D41: 0 | E41: colones/l | G41: Costo Variable de mantenimiento (CVM) | I41: =I39/(1-I13/100) -> 5.304023394 | J41: colones/kWh | L41: Costo por Combustible | M41: Costo por combustible | N41: =N29*N39 -> 279014.1301 | O41: colones/arranque
B42: Consumo lubricante (CL) | D42: 0 | E42: l/kWh
B44: Costo Variable por lubricantes (CVL) | D44: =D41*D42/(1-I13/100) -> 0 | E44: colones/kWh | G44: MANTENIMIENTO ALTERNATIVO | L44: COSTO ARRANQUE Y PARO (CPA) | Q44: =N35+N41 -> 2225214.13 | R44: colones/arranque
G45: Valor de los repuestos durante el ciclo operativo (RPTM) | I45: =(I76/I72+I77/I73+I78/I74+I79/I75)*I19 -> 141323.35 | J45: colones/h
G46: Valor de otros insumos durante el ciclo operativo (OIM) | J46: colones/h | Q46: =Q44/I19 -> 4078.09792 | R46: $/arranque
B47: CONTROL Y MITIGACIÓN EMISIONES | G47: Valor de la mano de obra adicional (MOAM) | J47: colones/h
B48: Precio quimicos (PQCME) | E48: colones/l | G48: Costo Variable de mantenimiento (CVM) | I48: =I45/(B63*(1-I13/100))+(I46+I47)/(B63*(1-I13/100)) -> 7.703035192 | J48: colones/kWh | L48: Comentarios:
B49: Consumo de quimicos (CQCME) | E49: l/hr
B50: Costo de mitigacion de emisiones (CVCME) | D50: =(D48/(I12*1000000*(1-I13/100)))*D49 -> 0 | E50: colones/kWh
B53: COSTOS VARIABLES TOTALES DE PRODUCCION (CVP) | H53: =IF(I21="HISTORICO",I41,I48)+D44+I35+D38+D32+I30+D50 -> 271.6641812 | I53: colones/kWh
H55: =H53/I19*100 -> 49.78725944 | I55: cent $/kWh
B57: Costo Variable de O&M (sin combustible) | H57: =(H55-D33) -> 3.635820226 | I57: cent $/kWh
B59: DATOS PARA EL CALCULO
B61: Rendimiento seleccionado | E61: CVC (cent $/kWh)
B62: Potencia (kW) | C62: Rend (kWh/l)
B63: =IF($I$20=1,B72,B80) -> 18500 | C63: 2.53 | E63: 49.95857889 | H63: Crear la curva de costo con las condiciones
B64: 18000 | C64: 2.49 | E64: 50.70253524 | H64: actuales del calculo.
B65: 16000 | C65: 2.322 | E65: 54.10704866
B66: 14000 | C66: 2.147 | E66: 58.21997679 | H66: *Los datos de la curva solo se actualizan al presionar
B67: 11000 | C67: 1.863 | E67: 66.5391616 | H67: el botón. Luego de cargar la curva es posible que
H68: la potencia seleccionada haya cambiado.
B70: Rendimiento combustible 1 | E70: Tabla de Mantenimientos
B71: Potencia (kW) | C71: Rend (kWh/l) | E71: Descripción | I71: Valor | J71: Unidades
B72: 18500 | C72: 2.53 | E72: Intervalo entre inspecciones de mantenimiento tipo 1, IMT1 | I72: 5000 | J72: horas
B73: 18000 | C73: 2.49 | E73: Intervalo entre inspecciones de mantenimiento tipo 2, IMT2 | I73: 10000 | J73: horas
B74: 16000 | C74: 2.322 | E74: Intervalo entre inspecciones de mantenimiento tipo 3, IMT3 | I74: 15000 | J74: horas
B75: 14000 | C75: 2.147 | E75: Intervalo entre inspecciones de mantenimiento tipo 3, IMT4 | I75: 20000 | J75: horas
B76: 11000 | C76: 1.863 | E76: Costo total de una inspecciónde mantenimiento tipo 1, MT1 | I76: 20000 | J76: dólares
E77: Costo total de una inspección de mantenimiento tipo 2, MT2 | I77: 50000 | J77: dólares
B78: Rendimiento Combustible 2 | E78: Costo total de una inspección de mantenimiento tipo 3, MT3 | I78: 1500000 | J78: dólares
B79: Potencia (kW) | C79: Rend (kWh/l) | E79: Costo total de una inspección de mantenimiento tipo 3, MT4 | I79: 3000000 | J79: dólares

Sheet MOIN I
C1: INSTITUTO COSTARRICENSE DE ELECTRICIDAD | I1: Código: | M1: INSTITUTO COSTARRICENSE DE ELECTRICIDAD | R1: Código:
I2: PE-05-FO-90-002 | R2: PE-05-FO-90-002
C3: UEN PRODUCCIÓN DE ELECTRICIDAD | I3: Versión: | M3: UEN PRODUCCIÓN DE ELECTRICIDAD | R3: Versión:
I4: 2 | R4: 1
C5: REPORTE DEL COSTO VARIABLE OPERATIVO | I5: Rige a partir de: | M5: REPORTE DEL COSTO VARIABLE OPERATIVO | R5: Rige a partir de:
I6: 2012-06-12 | R6: 2012-06-12
B8: Fecha: | C8: 2014-11-04 | E8: Planta: | F8: Moín I | H8: Unidad: | I8: 1 - 2- 4 | M8: COSTOS DE ARRANQUE Y PARO
B10: COMBUSTIBLE 1 PRINCIPAL | G10: OPERACIÓN | M10: Tipo de Arranque: | N10: Caliente
B11: Tipo | D11: HFO Clase C | G11: Horas esperadas de operación, hop | I11: =7.5+165.21*I12 -> 1884.81262 | J11: hrs/periodo | M11: Descripción: | N11: Arranque después de no más de 3 horas de la última parada. Utiliza solo búnker
B12: Poder calorico bajo (LHV) | D12: =D13/1.06*0.96 -> 36769.81132 | E12: BTU/l | G12: Generación bruta (PP) | I12: =34.08957/3 -> 11.36319 | J12: GWh/periodo
B13: Pder calórico bajo (LHV) | D13: 40600 | E13: kJ/kg | G13: Consumo por servicio propio: | I13: 6.38 | J13: % | L13: PÉRDIDA DE EFICIENCIA EN LA TOMA DE CARGA Y DESCARGA | Q13: CONDICIONES DE OTROS ARRANQUES
B14: Precio combustible | D14: 357.1807 | E14: colones/l | L14: Consumo de combustible durante la carga (X) | N14: 260 | O14: =+IF($B$11="Turbo vapor","toneladas","litros") -> litros | Q14: 2. Arranque tibio, no más de 12 horas después de la última parada. El arranque se realiza en diesel y se requiere unos 15 minutos adicionales de diesel. 3. Arranque en frío, puede llegar a requerir hasta 3 horas de operación en diesel luego del arranque. El arranque se realiza en diesel. 4. Se utilizan 5 horas de penalización por mantenimento.
M15: Energía generada durante la toma de carga (Ex) | N15: 967 | O15: kWh
M16: Rendimiento de la unidad a potencia nominal (Rnom) | N16: =IF(N38=1,C72,C80) -> 3.859137931 | O16: =+CONCATENATE("kWh/",IF($B$11="Turbo vapor","toneladas","litros")) -> kWh/litros
B17: COMBUSTIBLE 2 SECUNDARIO | G17: CONDICIONES | L17: Consumo de combustible durante la descarga (Y) | N17: 252 | O17: =+IF($B$11="Turbo vapor","toneladas","litros") -> litros
B18: Tipo | D18: Diesel | G18: Potencia efectiva actual | I18: 6500 | J18: kW | M18: Energía generada durante la toma de descarga (Ey) | N18: 1058 | O18: kWh
B19: Poder calorico bajo (LHV) | D19: =D20/1.06*0.84 -> 34233.96226 | E19: BTU/l | G19: Tipo de cambio | I19: 545.65 | J19: colones/$
B20: Pder calórico bajo (LHV) | D20: 43200 | E20: kJ/kg | G20: Tipo de combustible | I20: 1
B21: Precio combustible | D21: 630.31 | E21: colones/l | H21: Método calculo de repuestos | I21: HISTORICO
H22: Porcentaje de uso del combustible 2 | I22: 0.0287
L23: CONSUMO DE COMBUSTIBLE EN LAS RAMPAS | Q23: TIEMPO DE ARRANQUE Y PARO
L24: Consumo de combustible arranque (Ga) | N24: 7 | O24: =+CONCATENATE(IF($B$11="Turbo vapor","toneladas","litros"),"/arranque") -> litros/arranque | Q24: Tiempo de arranque (ta) | R24: 5 | S24: minutos
B25: CALCULO DE COSTOS VARIABLES OPERATIVOS | L25: Consumo de combustible parada (Gp) | N25: 15 | O25: =+CONCATENATE(IF($B$11="Turbo vapor","toneladas","litros"),"/arranque") -> litros/arranque | Q25: Tiempo de parada (tp) | R25: 10 | S25: minutos
L26: Consumo de combustible asumiendo carga (Gc) | N26: =+IF(OR(N14="",N15="",N16=""),0,IF((N14-(N15/$N$16))<0,0,N14-(N15/$N$16))) -> 9.425903588 | O26: =+CONCATENATE(IF($B$11="Turbo vapor","toneladas","litros"),"/arranque") -> litros/arranque | Q26: Tiempo de rampa de carga (tc) | R26: 30 | S26: minutos
B27: COMBUSTIBLE | G27: TRATAMIENTO QUÍMICO | L27: Consumo de combustible asumiendo descarga (Gd) | N27: =+IF(OR(N17="",N18="",N16=""),0,IF((N17-(N18/$N$16))<0,0,N17-(N18/$N$16))) -> 0 | O27: =+CONCATENATE(IF($B$11="Turbo vapor","toneladas","litros"),"/arranque") -> litros/arranque | Q27: Tiempo de rampa de descarga (td) | R27: 20 | S27: minutos
B28: Rendimiento promedio | D28: =VLOOKUP(I18,$B$63:$C$67,2,FALSE) -> 4.145 | E28: kWh/l | G28: Precio de productos quimicos a granel (PPQ) | I28: 1170 | J28: colones/l
B29: Heat Rate | D29: =IF(I20=1,D12,D19)/D28 -> 8870.88331 | E29: BTU/kWh | G29: Consumo de productos, durante ciclo operativo (CPQ) | I29: 1 | J29: l/h | L29: Consumo total de combustible (Gi) | N29: =N27+N26+N25+N24 -> 31.42590359 | O29: =+CONCATENATE(IF($B$11="Turbo vapor","toneladas","litros"),"/arranque") -> litros/arranque
B30: Eficiencia electrica del turbogrupo | D30: =3413/D29 -> 0.3847418437 | G30: Costo Variable de productos quimicos (CVPQ) | I30: =(I28*I29)/(I12*1000000*(1-I13/100)) -> 0.0001099808208 | J30: colones/kWh
L31: COSTO POR MANTENIMIENTO
B32: Costo Variable por Combustible (CVC) | D32: =IF(I20=1,D14,D21)/(D28*(1-I13/100)) -> 92.04385771 | E32: colones/kWh | G32: AGUA DE PROCESO | L32: Costos de mantenimiento por hora de operación (M) | N32: =IF(I21="HISTORICO",I41,I48)*B63*(1-I13/100) -> 121875 | O32: colones/hop
D33: =D32/I19*100 -> 16.86866264 | E33: cent-$/kWh | G33: Precio del agua potable o cruda, mes de declaracion (PA) | I33: 29.25 | J33: colones/m3 | L33: Horas equivalente de operación por arranque (hpa) | N33: 5 | O33: hop
B34: ARRANQUE | G34: Consumo agua, durante ciclo operativo (CAA) | I34: 0.29 | J34: m3/h
B35: Costo por arranque (CPA) | D35: =Q44 -> 629183.0613 | E35: colones/arr | G35: Costo Variable por agua potable o cruda (CVAP) | I35: =I33*I34/(I12*1000000*(1-I13/100)) -> 7.973609508e-07 | J35: colones/kWh | L35: Costo por mantenimiento | N35: =+N32*N33 -> 609375 | O35: colones/arranque
B36: Número de arranques estimado (#A) | D36: =18.08+7.68*I12 -> 105.3492992 | E36: arranques
B37: Ciclo de arranque (CA) | D37: =I12*1000000*(1-I13/100)/D36 -> 100980.439 | E37: kWh/arranque | L37: COSTO POR COMBUSTIBLE
B38: Costo Variable por Arranque (CVA) | D38: =D35/D37 -> 6.230741991 | E38: colones/kWh | G38: MANTENIMIENTO HISTÓRICO | M38: Tipo de combustible: | N38: 2
G39: Costo unitario repuestos (CUMRep) | I39: 18.75 | J39: colones/kWh | M39: Precio Combustible: | N39: =IF(N38=1,D14,D21) -> 630.31 | O39: =+CONCATENATE("colones/",IF($B$11="Turbo vapor","ton","litros")) -> colones/litros
B40: LUBRICANTES
B41: Precio del lubricante (PL) | D41: 1403.28 | E41: colones/l | G41: Costo Variable de mantenimiento (CVM) | I41: =I39/(1-I13/100) -> 20.02777184 | J41: colones/kWh | L41: Costo por Combustible | M41: Costo por combustible | N41: =(N24+N26)*N39+(N25+N27)*D21 -> 19808.06129 | O41: colones/arranque
B42: Consumo lubricante (CL) | D42: 0.00382 | E42: l/kWh
B44: Costo Variable por lubricantes (CVL) | D44: =D41*D42/(1-I13/100) -> 5.725838069 | E44: colones/kWh | G44: MANTENIMIENTO ALTERNATIVO | L44: COSTO ARRANQUE Y PARO (CPA) | Q44: =IF(L47="Caliente",N35+N41,IF(L47="Tibio",N35+N41+N46,N35+N41+N47)) -> 629183.0613 | R44: colones/arranque
G45: Valor de los repuestos durante el ciclo operativo (RPTM) | I45: =(I76/I72+I77/I73+I78/I74+I79/I75)*I19 -> 106844.1021 | J45: colones/h
G46: Valor de otros insumos durante el ciclo operativo (OIM) | J46: colones/h | L46: TIPO ARRANQUE | M46: Adicional arranque en tíbio | N46: =(15/60)*($B$80/$C$80*$D$21-$B$63/$C$63*$D$14) -> 125381.3657 | Q46: =Q44/I19 -> 1153.089089 | R46: $/arranque
B47: CONTROL Y MITIGACIÓN EMISIONES | G47: Valor de la mano de obra adicional (MOAM) | J47: colones/h | L47: Caliente | M47: Adicional arranque en frío | N47: =3*($B$80/$C$80*$D$21-$B$63/$C$63*$D$14) -> 1504576.388
B48: Precio quimicos (PQCME) | E48: colones/l | G48: Costo Variable de mantenimiento (CVM) | I48: =I45/(B63*(1-I13/100))+(I46+I47)/(B63*(1-I13/100)) -> 17.55773784 | J48: colones/kWh | L48: Comentarios:
B49: Consumo de quimicos (CQCME) | E49: l/hr | L49: 1. Para el próximo verano se verificarán los datos de consumo de combusible al arranque. Para una aproximación se utilizan los datos de Guápiles.
B50: Costo de mitigacion de emisiones (CVCME) | D50: =(D48/(I12*1000000*(1-I13/100)))*D49 -> 0 | E50: colones/kWh
B53: COSTOS VARIABLES TOTALES DE PRODUCCION (CVP) | H53: =IF(I21="HISTORICO",I41,I48)+D44+I35+D38+D32+I30+D50 -> 124.0283204 | I53: colones/kWh
H55: =H53/I19*100 -> 22.73038035 | I55: cent $/kWh
B57: Costo Variable de O&M (sin combustible) | H57: =(H55-D33) -> 5.861717709 | I57: cent $/kWh
B59: DATOS PARA EL CALCULO
B61: Rendimiento seleccionado | E61: CVC (cent $/kWh)
B62: Potencia (kW) | C62: Rend (kWh/l)
B63: =IF($I$20=1,B72,B80) -> 6500 | C63: 4.145 | E63: 22.80126443 | H63: Crear la curva de costo con las condiciones
B64: 6000 | C64: 4.05 | E64: 23.19818574 | H64: actuales del calculo.
B65: 5500 | C65: 3.973 | E65: 23.53382867
B66: 5000 | C66: 3.893 | E66: 23.89661205 | H66: *Los datos de la curva solo se actualizan al presionar
B67: 4500 | C67: 3.816 | E67: 24.26015717 | H67: el botón. Luego de cargar la curva es posible que
H68: la potencia seleccionada haya cambiado.
B70: Rendimiento combustible 1 | E70: Tabla de Mantenimientos
B71: Potencia (kW) | C71: Rend (kWh/l) | E71: Descripción | I71: Valor | J71: Unidades
B72: 6500 | C72: 4.145 | E72: Intervalo entre inspecciones de mantenimiento tipo 1, IMT1 | I72: 3000 | J72: horas
B73: 6000 | C73: 4.05 | E73: Intervalo entre inspecciones de mantenimiento tipo 2, IMT2 | I73: 6000 | J73: horas
B74: 5500 | C74: 3.973 | E74: Intervalo entre inspecciones de mantenimiento tipo 3, IMT3 | I74: 9000 | J74: horas
B75: 5000 | C75: 3.893 | E75: Intervalo entre inspecciones de mantenimiento tipo 3, IMT4 | I75: 12000 | J75: horas
B76: 4500 | C76: 3.816 | E76: Costo total de una inspecciónde mantenimiento tipo 1, MT1 | I76: 181656.1181 | J76: colones
E77: Costo total de una inspección de mantenimiento tipo 2, MT2 | I77: 289536.3498 | J77: colones
B78: Rendimiento Combustible 2 | E78: Costo total de una inspección de mantenimiento tipo 3, MT3 | I78: 276002.881 | J78: colones
B79: Potencia (kW) | C79: Rend (kWh/l) | E79: Costo total de una inspección de mantenimiento tipo 3, MT4 | I79: 676027.2469 | J79: colones
B80: 6500 | C80: =C72*$D$19/$D$12 -> 3.859137931
B81: 6000 | C81: =C73*$D$19/$D$12 -> 3.770689655
B82: 5500 | C82: 3.699
B83: 5000 | C83: 3.624517241
B84: 4500 | C84: 3.552827586

Sheet MOIN II
C1: INSTITUTO COSTARRICENSE DE ELECTRICIDAD | I1: Código: | M1: INSTITUTO COSTARRICENSE DE ELECTRICIDAD | R1: Código:
I2: PE-05-FO-90-002 | R2: PE-05-FO-90-002
C3: UEN PRODUCCIÓN DE ELECTRICIDAD | I3: Versión: | M3: UEN PRODUCCIÓN DE ELECTRICIDAD | R3: Versión:
I4: 2 | R4: 1
C5: REPORTE DEL COSTO VARIABLE OPERATIVO | I5: Rige a partir de: | M5: REPORTE DEL COSTO VARIABLE OPERATIVO | R5: Rige a partir de:
I6: 2012-06-12 | R6: 2012-06-12
B8: Fecha: | C8: 2014-11-04 | E8: Planta: | F8: Moín II | H8: Unidad: | I8: 5, 6, 7, 8 | M8: COSTOS DE ARRANQUE Y PARO
B10: COMBUSTIBLE 1 PRINCIPAL | G10: OPERACIÓN | M10: Tipo de Arranque: | N10: Frío
B11: Tipo | D11: Diesel | G11: Horas esperadas de operación, hop | I11: =12.91+32.81*I12 -> 721.3493602 | J11: hrs/periodo | M11: Descripción: | N11: Arranque luego de varios días de no operación.
B12: Poder calorico bajo (LHV) | D12: =D13/1.06*0.96 -> 39124.5283 | E12: BTU/l | G12: Generación bruta (PP) | I12: =86.368712/4 -> 21.592178 | J12: GWh/periodo
B13: Pder calórico bajo (LHV) | D13: 43200 | E13: kJ/kg | G13: Consumo por servicio propio: | I13: 1.13 | J13: % | L13: PÉRDIDA DE EFICIENCIA EN LA TOMA DE CARGA Y DESCARGA | Q13: CONDICIONES DE OTROS ARRANQUES
B14: Precio combustible | D14: 630.31 | E14: colones/l | L14: Consumo de combustible durante la carga (X) | N14: 315 | O14: =+IF($B$11="Turbo vapor","toneladas","litros") -> litros | Q14: Los arranques en caliente son poco comunes en este tipo de plantas por su función del respaldo. Por lo que solo se considera un tipo de arranque.
M15: Energía generada durante la toma de carga (Ex) | N15: 519 | O15: kWh
M16: Rendimiento de la unidad a potencia nominal (Rnom) | N16: =IF(N38=1,C72,C80) -> 2.84 | O16: =+CONCATENATE("kWh/",IF($B$11="Turbo vapor","toneladas","litros")) -> kWh/litros
B17: COMBUSTIBLE 2 SECUNDARIO | G17: CONDICIONES | L17: Consumo de combustible durante la descarga (Y) | N17: 333 | O17: =+IF($B$11="Turbo vapor","toneladas","litros") -> litros
B18: Tipo | G18: Potencia efectiva actual | I18: 30000 | J18: kW | M18: Energía generada durante la toma de descarga (Ey) | N18: 661 | O18: kWh
B19: Poder calorico bajo (LHV) | D19: =D20/1.06*0.84 -> 0 | E19: BTU/l | G19: Tipo de cambio | I19: 545.65 | J19: colones/$
B20: Pder calórico bajo (LHV) | E20: kJ/kg | G20: Tipo de combustible | I20: 1
B21: Precio combustible | E21: colones/l | H21: Método calculo de repuestos | I21: ALTERNATIVO
H22: Porcentaje de uso del combustible 2 | I22: No aplica
L23: CONSUMO DE COMBUSTIBLE EN LAS RAMPAS | Q23: TIEMPO DE ARRANQUE Y PARO
L24: Consumo de combustible arranque (Ga) | N24: 181 | O24: =+CONCATENATE(IF($B$11="Turbo vapor","toneladas","litros"),"/arranque") -> litros/arranque | Q24: Tiempo de arranque (ta) | R24: 11 | S24: minutos
B25: CALCULO DE COSTOS VARIABLES OPERATIVOS | L25: Consumo de combustible parada (Gp) | N25: 79 | O25: =+CONCATENATE(IF($B$11="Turbo vapor","toneladas","litros"),"/arranque") -> litros/arranque | Q25: Tiempo de parada (tp) | R25: 11 | S25: minutos
L26: Consumo de combustible asumiendo carga (Gc) | N26: =+IF(OR(N14="",N15="",N16=""),0,IF((N14-(N15/$N$16))<0,0,N14-(N15/$N$16))) -> 132.2535211 | O26: =+CONCATENATE(IF($B$11="Turbo vapor","toneladas","litros"),"/arranque") -> litros/arranque | Q26: Tiempo de rampa de carga (tc) | R26: 4.2 | S26: minutos
B27: COMBUSTIBLE | G27: TRATAMIENTO QUÍMICO | L27: Consumo de combustible asumiendo descarga (Gd) | N27: =+IF(OR(N17="",N18="",N16=""),0,IF((N17-(N18/$N$16))<0,0,N17-(N18/$N$16))) -> 100.2535211 | O27: =+CONCATENATE(IF($B$11="Turbo vapor","toneladas","litros"),"/arranque") -> litros/arranque | Q27: Tiempo de rampa de descarga (td) | R27: 4.2 | S27: minutos
B28: Rendimiento promedio | D28: =VLOOKUP(I18,$B$63:$C$67,2,FALSE) -> 2.84 | E28: kWh/l | G28: Precio de productos quimicos a granel (PPQ) | J28: colones/l
B29: Heat Rate | D29: =IF(I20=1,D12,D19)/D28 -> 13776.24236 | E29: BTU/kWh | G29: Consumo de productos, durante ciclo operativo (CPQ) | J29: l/h | L29: Consumo total de combustible (Gi) | N29: =N27+N26+N25+N24 -> 492.5070423 | O29: =+CONCATENATE(IF($B$11="Turbo vapor","toneladas","litros"),"/arranque") -> litros/arranque
B30: Eficiencia electrica del turbogrupo | D30: =3413/D29 -> 0.2477453511 | G30: Costo Variable de productos quimicos (CVPQ) | I30: =(I28*I29)/(I12*1000000*(1-I13/100)) -> 0 | J30: colones/kWh
L31: COSTO POR MANTENIMIENTO
B32: Costo Variable por Combustible (CVC) | D32: =IF(I20=1,D14,D21)/(D28*(1-I13/100)) -> 224.4767279 | E32: colones/kWh | G32: AGUA DE PROCESO | L32: Costos de mantenimiento por hora de operación (M) | N32: =IF(I21="HISTORICO",I41,I48)*B63*(1-I13/100) -> 205602.4624 | O32: colones/hop
D33: =D32/I19*100 -> 41.13932518 | E33: cent-$/kWh | G33: Precio del agua potable o cruda, mes de declaracion (PA) | I33: 62.5 | J33: colones/m3 | L33: Horas equivalente de operación por arranque (hpa) | N33: 20 | O33: hop
B34: ARRANQUE | G34: Consumo agua, durante ciclo operativo (CAA) | I34: 0.1 | J34: m3/h
B35: Costo por arranque (CPA) | D35: =Q44 -> 4422481.362 | E35: colones/arr | G35: Costo Variable por agua potable o cruda (CVAP) | I35: =I33*I34/(I12*1000000*(1-I13/100)) -> 2.927649162e-07 | J35: colones/kWh | L35: Costo por mantenimiento | N35: =+N32*N33 -> 4112049.248 | O35: colones/arranque
B36: Número de arranques estimado (#A) | D36: =23.32+0.78*I12 -> 40.16189884 | E36: arranques
B37: Ciclo de arranque (CA) | D37: =I12*1000000*(1-I13/100)/D36 -> 531553.2135 | E37: kWh/arranque | L37: COSTO POR COMBUSTIBLE
B38: Costo Variable por Arranque (CVA) | D38: =D35/D37 -> 8.319922164 | E38: colones/kWh | G38: MANTENIMIENTO HISTÓRICO | M38: Tipo de combustible: | N38: 1
G39: Costo unitario repuestos (CUMRep) | I39: 2.67 | J39: colones/kWh | M39: Precio Combustible: | N39: =IF(N38=1,D14,D21) -> 630.31 | O39: =+CONCATENATE("colones/",IF($B$11="Turbo vapor","ton","litros")) -> colones/litros
B40: LUBRICANTES
B41: Precio del lubricante (PL) | E41: colones/l | G41: Costo Variable de mantenimiento (CVM) | I41: =I39/(1-I13/100) -> 2.700515829 | J41: colones/kWh | L41: Costo por Combustible | M41: Costo por combustible | N41: =N29*N39 -> 310432.1138 | O41: colones/arranque
B42: Consumo lubricante (CL) | E42: l/kWh
B44: Costo Variable por lubricantes (CVL) | D44: =D41*D42/(1-I13/100) -> 0 | E44: colones/kWh | G44: MANTENIMIENTO ALTERNATIVO | L44: COSTO ARRANQUE Y PARO (CPA) | Q44: =N35+N41 -> 4422481.362 | R44: colones/arranque
G45: Valor de los repuestos durante el ciclo operativo (RPTM) | I45: =(I76/I72+I77/I73+I78/I74+I79/I75)*I19 -> 205602.4624 | J45: colones/h
G46: Valor de otros insumos durante el ciclo operativo (OIM) | J46: colones/h | Q46: =Q44/I19 -> 8104.978213 | R46: $/arranque
B47: CONTROL Y MITIGACIÓN EMISIONES | G47: Valor de la mano de obra adicional (MOAM) | J47: colones/h
B48: Precio quimicos (PQCME) | E48: colones/l | G48: Costo Variable de mantenimiento (CVM) | I48: =I45/(B63*(1-I13/100))+(I46+I47)/(B63*(1-I13/100)) -> 6.931744122 | J48: colones/kWh | L48: Comentarios:
B49: Consumo de quimicos (CQCME) | E49: l/hr | L49: 1. Para el próximo verano se verificarán los datos de consumo de combusible al arranque. Para una aproximación se utilizan los datos de Barranca.
B50: Costo de mitigacion de emisiones (CVCME) | D50: =(D48/(I12*1000000*(1-I13/100)))*D49 -> 0 | E50: colones/kWh
B53: COSTOS VARIABLES TOTALES DE PRODUCCION (CVP) | H53: =IF(I21="HISTORICO",I41,I48)+D44+I35+D38+D32+I30+D50 -> 239.7283944 | I53: colones/kWh
H55: =H53/I19*100 -> 43.93446247 | I55: cent $/kWh
B57: Costo Variable de O&M (sin combustible) | H57: =(H55-D33) -> 2.795137282 | I57: cent $/kWh
B59: DATOS PARA EL CALCULO
B61: Rendimiento seleccionado | E61: CVC (cent $/kWh)
B62: Potencia (kW) | C62: Rend (kWh/l)
B63: =IF($I$20=1,B72,B80) -> 30000 | C63: 2.84 | E63: 43.88566121 | H63: Crear la curva de costo con las condiciones
B64: 27000 | C64: 2.67 | E64: 46.50191986 | H64: actuales del calculo.
B65: 24000 | C65: 2.49 | E65: 49.66145546
B66: 21000 | C66: 2.3 | E66: 53.53303134 | H66: *Los datos de la curva solo se actualizan al presionar
B67: 18000 | C67: 2.1 | E67: 58.36522379 | H67: el botón. Luego de cargar la curva es posible que
H68: la potencia seleccionada haya cambiado.
B70: Rendimiento combustible 1 | E70: Tabla de Mantenimientos
B71: Potencia (kW) | C71: Rend (kWh/l) | E71: Descripción | I71: Valor | J71: Unidades
B72: 30000 | C72: 2.84 | E72: Intervalo entre inspecciones de mantenimiento tipo 1, IMT1 | I72: 6000 | J72: horas
B73: 27000 | C73: 2.67 | E73: Intervalo entre inspecciones de mantenimiento tipo 2, IMT2 | I73: 12000 | J73: horas
B74: 24000 | C74: 2.49 | E74: Intervalo entre inspecciones de mantenimiento tipo 3, IMT3 | I74: 24000 | J74: horas
B75: 21000 | C75: 2.3 | E75: Intervalo entre inspecciones de mantenimiento tipo 3, IMT4 | I75: 20000 | J75: horas
B76: 18000 | C76: 2.1 | E76: Costo total de una inspecciónde mantenimiento tipo 1, MT1 | I76: 191724.5 | J76: dólares
E77: Costo total de una inspección de mantenimiento tipo 2, MT2 | I77: 2753784.42 | J77: dólares
B78: Rendimiento Combustible 2 | E78: Costo total de una inspección de mantenimiento tipo 3, MT3 | I78: 2768801.002 | J78: dólares
B79: Potencia (kW) | C79: Rend (kWh/l) | E79: Costo total de una inspección de mantenimiento tipo 3, MT4 | I79: 0 | J79: dólares

Sheet MOIN III
C1: INSTITUTO COSTARRICENSE DE ELECTRICIDAD | I1: Código: | M1: INSTITUTO COSTARRICENSE DE ELECTRICIDAD | R1: Código:
I2: PE-05-FO-90-002 | R2: PE-05-FO-90-002
C3: UEN PRODUCCIÓN DE ELECTRICIDAD | I3: Versión: | M3: UEN PRODUCCIÓN DE ELECTRICIDAD | R3: Versión:
I4: 2 | R4: 1
C5: REPORTE DEL COSTO VARIABLE OPERATIVO | I5: Rige a partir de: | M5: REPORTE DEL COSTO VARIABLE OPERATIVO | R5: Rige a partir de:
I6: 2012-06-12 | R6: 2012-06-12
B8: Fecha: | C8: 2014-11-04 | E8: Planta: | F8: Moín III | H8: Unidad: | I8: 9 - 10 | M8: COSTOS DE ARRANQUE Y PARO
B10: COMBUSTIBLE 1 PRINCIPAL | G10: OPERACIÓN | M10: Tipo de Arranque: | N10: Frío
B11: Tipo | D11: Diesel | G11: Horas esperadas de operación, hop | I11: =40.34+28.84*I12 -> 1119.99088 | J11: hrs/periodo | M11: Descripción: | N11: Arranque luego de varios días de no operación.
B12: Poder calorico bajo (LHV) | D12: =D13/1.06*0.96 -> 39124.5283 | E12: BTU/l | G12: Generación bruta (PP) | I12: =74.871767/2 -> 37.4358835 | J12: GWh/periodo
B13: Pder calórico bajo (LHV) | D13: 43200 | E13: kJ/kg | G13: Consumo por servicio propio: | I13: 0.81 | J13: % | L13: PÉRDIDA DE EFICIENCIA EN LA TOMA DE CARGA Y DESCARGA | Q13: CONDICIONES DE OTROS ARRANQUES
B14: Precio combustible | D14: 630.31 | E14: colones/l | L14: Consumo de combustible durante la carga (X) | N14: 315 | O14: =+IF($B$11="Turbo vapor","toneladas","litros") -> litros | Q14: Los arranques en caliente son poco comunes en este tipo de plantas por su función del respaldo. Por lo que solo se considera un tipo de arranque.
M15: Energía generada durante la toma de carga (Ex) | N15: 519 | O15: kWh
M16: Rendimiento de la unidad a potencia nominal (Rnom) | N16: =IF(N38=1,C72,C80) -> 3.007 | O16: =+CONCATENATE("kWh/",IF($B$11="Turbo vapor","toneladas","litros")) -> kWh/litros
B17: COMBUSTIBLE 2 SECUNDARIO | G17: CONDICIONES | L17: Consumo de combustible durante la descarga (Y) | N17: 333 | O17: =+IF($B$11="Turbo vapor","toneladas","litros") -> litros
B18: Tipo | G18: Potencia efectiva actual | I18: 35000 | J18: kW | M18: Energía generada durante la toma de descarga (Ey) | N18: 661 | O18: kWh
B19: Poder calorico bajo (LHV) | D19: =D20/1.06*0.84 -> 0 | E19: BTU/l | G19: Tipo de cambio | I19: 545.65 | J19: colones/$
B20: Pder calórico bajo (LHV) | E20: kJ/kg | G20: Tipo de combustible | I20: 1
B21: Precio combustible | E21: colones/l | H21: Método calculo de repuestos | I21: ALTERNATIVO
H22: Porcentaje de uso del combustible 2 | I22: No aplica
L23: CONSUMO DE COMBUSTIBLE EN LAS RAMPAS | Q23: TIEMPO DE ARRANQUE Y PARO
L24: Consumo de combustible arranque (Ga) | N24: 181 | O24: =+CONCATENATE(IF($B$11="Turbo vapor","toneladas","litros"),"/arranque") -> litros/arranque | Q24: Tiempo de arranque (ta) | R24: 11 | S24: minutos
B25: CALCULO DE COSTOS VARIABLES OPERATIVOS | L25: Consumo de combustible parada (Gp) | N25: 79 | O25: =+CONCATENATE(IF($B$11="Turbo vapor","toneladas","litros"),"/arranque") -> litros/arranque | Q25: Tiempo de parada (tp) | R25: 11 | S25: minutos
L26: Consumo de combustible asumiendo carga (Gc) | N26: =+IF(OR(N14="",N15="",N16=""),0,IF((N14-(N15/$N$16))<0,0,N14-(N15/$N$16))) -> 142.402727 | O26: =+CONCATENATE(IF($B$11="Turbo vapor","toneladas","litros"),"/arranque") -> litros/arranque | Q26: Tiempo de rampa de carga (tc) | R26: 4.2 | S26: minutos
B27: COMBUSTIBLE | G27: TRATAMIENTO QUÍMICO | L27: Consumo de combustible asumiendo descarga (Gd) | N27: =+IF(OR(N17="",N18="",N16=""),0,IF((N17-(N18/$N$16))<0,0,N17-(N18/$N$16))) -> 113.179581 | O27: =+CONCATENATE(IF($B$11="Turbo vapor","toneladas","litros"),"/arranque") -> litros/arranque | Q27: Tiempo de rampa de descarga (td) | R27: 4.2 | S27: minutos
B28: Rendimiento promedio | D28: =VLOOKUP(I18,$B$63:$C$67,2,FALSE) -> 3.007 | E28: kWh/l | G28: Precio de productos quimicos a granel (PPQ) | J28: colones/l
B29: Heat Rate | D29: =IF(I20=1,D12,D19)/D28 -> 13011.15008 | E29: BTU/kWh | G29: Consumo de productos, durante ciclo operativo (CPQ) | J29: l/h | L29: Consumo total de combustible (Gi) | N29: =N27+N26+N25+N24 -> 515.5823079 | O29: =+CONCATENATE(IF($B$11="Turbo vapor","toneladas","litros"),"/arranque") -> litros/arranque
B30: Eficiencia electrica del turbogrupo | D30: =3413/D29 -> 0.2623134756 | G30: Costo Variable de productos quimicos (CVPQ) | I30: =(I28*I29)/(I12*1000000*(1-I13/100)) -> 0 | J30: colones/kWh
L31: COSTO POR MANTENIMIENTO
B32: Costo Variable por Combustible (CVC) | D32: =IF(I20=1,D14,D21)/(D28*(1-I13/100)) -> 211.3259738 | E32: colones/kWh | G32: AGUA DE PROCESO | L32: Costos de mantenimiento por hora de operación (M) | N32: =IF(I21="HISTORICO",I41,I48)*B63*(1-I13/100) -> 205602.4628 | O32: colones/hop
D33: =D32/I19*100 -> 38.72921724 | E33: cent-$/kWh | G33: Precio del agua potable o cruda, mes de declaracion (PA) | I33: 62.5 | J33: colones/m3 | L33: Horas equivalente de operación por arranque (hpa) | N33: 20 | O33: hop
B34: ARRANQUE | G34: Consumo agua, durante ciclo operativo (CAA) | I34: 0.2 | J34: m3/h
B35: Costo por arranque (CPA) | D35: =Q44 -> 4437025.941 | E35: colones/arr | G35: Costo Variable por agua potable o cruda (CVAP) | I35: =I33*I34/(I12*1000000*(1-I13/100)) -> 3.366309445e-07 | J35: colones/kWh | L35: Costo por mantenimiento | N35: =+N32*N33 -> 4112049.257 | O35: colones/arranque
B36: Número de arranques estimado (#A) | D36: =23.67+0.78*I12 -> 52.86998913 | E36: arranques
B37: Ciclo de arranque (CA) | D37: =I12*1000000*(1-I13/100)/D36 -> 702338.9536 | E37: kWh/arranque | L37: COSTO POR COMBUSTIBLE
B38: Costo Variable por Arranque (CVA) | D38: =D35/D37 -> 6.317499433 | E38: colones/kWh | G38: MANTENIMIENTO HISTÓRICO | M38: Tipo de combustible: | N38: 1
G39: Costo unitario repuestos (CUMRep) | I39: 1.62 | J39: colones/kWh | M39: Precio Combustible: | N39: =IF(N38=1,D14,D21) -> 630.31 | O39: =+CONCATENATE("colones/",IF($B$11="Turbo vapor","ton","litros")) -> colones/litros
B40: LUBRICANTES
B41: Precio del lubricante (PL) | E41: colones/l | G41: Costo Variable de mantenimiento (CVM) | I41: =I39/(1-I13/100) -> 1.633229156 | J41: colones/kWh | L41: Costo por Combustible | M41: Costo por combustible | N41: =N29*N39 -> 324976.6845 | O41: colones/arranque
B42: Consumo lubricante (CL) | E42: l/kWh
B44: Costo Variable por lubricantes (CVL) | D44: =D41*D42/(1-I13/100) -> 0 | E44: colones/kWh | G44: MANTENIMIENTO ALTERNATIVO | L44: COSTO ARRANQUE Y PARO (CPA) | Q44: =N35+N41 -> 4437025.941 | R44: colones/arranque
G45: Valor de los repuestos durante el ciclo operativo (RPTM) | I45: =(I76/I72+I77/I73+I78/I74+I79/I75)*I19 -> 205602.4628 | J45: colones/h
G46: Valor de otros insumos durante el ciclo operativo (OIM) | J46: colones/h | Q46: =Q44/I19 -> 8131.633723 | R46: $/arranque
B47: CONTROL Y MITIGACIÓN EMISIONES | G47: Valor de la mano de obra adicional (MOAM) | J47: colones/h
B48: Precio quimicos (PQCME) | E48: colones/l | G48: Costo Variable de mantenimiento (CVM) | I48: =I45/(B63*(1-I13/100))+(I46+I47)/(B63*(1-I13/100)) -> 5.922326929 | J48: colones/kWh | L48: Comentarios:
B49: Consumo de quimicos (CQCME) | E49: l/hr | L49: 1. Para el próximo verano se verificarán los datos de consumo de combusible al arranque. Para una aproximación se utilizan los datos de Barranca.
B50: Costo de mitigacion de emisiones (CVCME) | D50: =(D48/(I12*1000000*(1-I13/100)))*D49 -> 0 | E50: colones/kWh
B53: COSTOS VARIABLES TOTALES DE PRODUCCION (CVP) | H53: =IF(I21="HISTORICO",I41,I48)+D44+I35+D38+D32+I30+D50 -> 223.5658005 | I53: colones/kWh
H55: =H53/I19*100 -> 40.97238166 | I55: cent $/kWh
B57: Costo Variable de O&M (sin combustible) | H57: =(H55-D33) -> 2.243164427 | I57: cent $/kWh
B59: DATOS PARA EL CALCULO
B61: Rendimiento seleccionado | E61: CVC (cent $/kWh)
B62: Potencia (kW) | C62: Rend (kWh/l)
B63: =IF($I$20=1,B72,B80) -> 35000 | C63: 3.007 | E63: 40.92645826 | H63: Crear la curva de costo con las condiciones
B64: 32000 | C64: 2.853 | E64: 43.0145209 | H64: actuales del calculo.
B65: 29000 | C65: 2.692 | E65: 45.45293269
B66: 26000 | C66: 2.524 | E66: 48.32902537 | H66: *Los datos de la curva solo se actualizan al presionar
B67: 23000 | C67: 2.348 | E67: 51.78350969 | H67: el botón. Luego de cargar la curva es posible que
H68: la potencia seleccionada haya cambiado.
B70: Rendimiento combustible 1 | E70: Tabla de Mantenimientos
B71: Potencia (kW) | C71: Rend (kWh/l) | E71: Descripción | I71: Valor | J71: Unidades
B72: 35000 | C72: 3.007 | E72: Intervalo entre inspecciones de mantenimiento tipo 1, IMT1 | I72: 6000 | J72: horas
B73: 32000 | C73: 2.853 | E73: Intervalo entre inspecciones de mantenimiento tipo 2, IMT2 | I73: 12000 | J73: horas
B74: 29000 | C74: 2.692 | E74: Intervalo entre inspecciones de mantenimiento tipo 3, IMT3 | I74: 24000 | J74: horas
B75: 26000 | C75: 2.524 | E75: Intervalo entre inspecciones de mantenimiento tipo 3, IMT4 | I75: 20000 | J75: horas
B76: 23000 | C76: 2.348 | E76: Costo total de una inspecciónde mantenimiento tipo 1, MT1 | I76: 191724.5 | J76: dólares
E77: Costo total de una inspección de mantenimiento tipo 2, MT2 | I77: 2753784.42 | J77: dólares
B78: Rendimiento Combustible 2 | E78: Costo total de una inspección de mantenimiento tipo 3, MT3 | I78: 2768801.02 | J78: dólares
B79: Potencia (kW) | C79: Rend (kWh/l) | E79: Costo total de una inspección de mantenimiento tipo 3, MT4 | I79: 0 | J79: dólares
